Department Family,Entity,Date Paid,Expense Type,Expense Area,Supplier,Transaction Number,Amount (�),Supplier VAT Registration Number
BEIS,Met Office,2020-07-01,11 SERVICES,TECHNOLOGY,AMAZON WEB SERVICES INC.,9830,0.54,N/A
BEIS,Met Office,2020-07-01,11 SERVICES,TECHNOLOGY,AMAZON WEB SERVICES INC.,9831,1506.91,N/A
BEIS,Met Office,2020-07-01,11 SERVICES,TECHNOLOGY,AMAZON WEB SERVICES INC.,9832,264.75,N/A
BEIS,Met Office,2020-07-01,11 SERVICES,TECHNOLOGY,AMAZON WEB SERVICES INC.,9839,84428.59,N/A
BEIS,Met Office,2020-07-01,11 SERVICES,OPERATIONS,COLLECTE LOCALISATION SATELLITES (C.L.S.),21553,7351.19,FR95338034390
BEIS,Met Office,2020-07-01,11 SERVICES,SCIENCE,FUNDACIO UNIVERSITAT ROVIRA I VIRGILI (FURV),21536,27877.76,ESG43581321
BEIS,Met Office,2020-07-01,11 SERVICES,SCIENCE,NIWA,21525,7781.4,GST059456466
BEIS,Met Office,2020-07-01,11 SERVICES,CHIEF FINANCIAL OFFICER,SWISSCOM (SCHWEIZ) AG,443404,92.49,-
BEIS,Met Office,2020-07-01,11 SERVICES,CHIEF FINANCIAL OFFICER,TELIA FINLAND OYJ,21552,64.93,FI14756079
BEIS,Met Office,2020-07-01,11 SERVICES,SCIENCE,UNIVERSITATBERN,21534,17830.24,280255
BEIS,Met Office,2020-07-01,08 SOFTWARE LICENCES,TECHNOLOGY,URBAN AIRSHIP INC.,443280,168.94,-
BEIS,Met Office,2020-07-01,STOCK,OPERATIONS,VAISALA OYJ,21518,0,FI01244162
BEIS,Met Office,2020-07-01,STOCK,OPERATIONS,VAISALA OYJ,21518,79477.85,FI01244162
BEIS,Met Office,2020-07-02,06 ACCOMMODATION,CHIEF FINANCIAL OFFICER,A & J GARDEN SERVICES LTD,443890,144,190817003
BEIS,Met Office,2020-07-02,06 ACCOMMODATION,CHIEF FINANCIAL OFFICER,A & J GARDEN SERVICES LTD,443890,330,190817003
BEIS,Met Office,2020-07-02,06 ACCOMMODATION,CHIEF FINANCIAL OFFICER,A & J GARDEN SERVICES LTD,443890,156,190817003
BEIS,Met Office,2020-07-02,06 ACCOMMODATION,CHIEF FINANCIAL OFFICER,A & J GARDEN SERVICES LTD,443890,200,190817003
BEIS,Met Office,2020-07-02,06 ACCOMMODATION,CHIEF FINANCIAL OFFICER,A & J GARDEN SERVICES LTD,443890,156,190817003
BEIS,Met Office,2020-07-02,06 ACCOMMODATION,CHIEF FINANCIAL OFFICER,A & J GARDEN SERVICES LTD,443890,200,190817003
BEIS,Met Office,2020-07-02,06 ACCOMMODATION,CHIEF FINANCIAL OFFICER,A & J GARDEN SERVICES LTD,443890,200,190817003
BEIS,Met Office,2020-07-02,06 ACCOMMODATION,CHIEF FINANCIAL OFFICER,A & J GARDEN SERVICES LTD,443890,200,190817003
BEIS,Met Office,2020-07-02,06 ACCOMMODATION,CHIEF FINANCIAL OFFICER,A & J GARDEN SERVICES LTD,443890,156,190817003
BEIS,Met Office,2020-07-02,06 ACCOMMODATION,CHIEF FINANCIAL OFFICER,A & J GARDEN SERVICES LTD,443890,200,190817003
BEIS,Met Office,2020-07-02,06 ACCOMMODATION,CHIEF FINANCIAL OFFICER,A & J GARDEN SERVICES LTD,443890,156,190817003
BEIS,Met Office,2020-07-02,06 ACCOMMODATION,CHIEF FINANCIAL OFFICER,A & J GARDEN SERVICES LTD,443890,156,190817003
BEIS,Met Office,2020-07-02,06 ACCOMMODATION,CHIEF FINANCIAL OFFICER,A & J GARDEN SERVICES LTD,443890,110,190817003
BEIS,Met Office,2020-07-02,06 ACCOMMODATION,CHIEF FINANCIAL OFFICER,A & J GARDEN SERVICES LTD,443890,200,190817003
BEIS,Met Office,2020-07-02,06 ACCOMMODATION,CHIEF FINANCIAL OFFICER,A & J GARDEN SERVICES LTD,443890,156,190817003
BEIS,Met Office,2020-07-02,06 ACCOMMODATION,CHIEF FINANCIAL OFFICER,A & J GARDEN SERVICES LTD,443890,200,190817003
BEIS,Met Office,2020-07-02,11 SERVICES,CORPORATE,ACCESS INTELLIGENCE MEDIA AND COMMUNICATIONS,443891,19595,GB225346716
BEIS,Met Office,2020-07-02,04 CONTRACTORS,OPERATIONS,AFBI,443989,50,252677738
BEIS,Met Office,2020-07-02,11 SERVICES,OPERATIONS,APPLIED SATELLITE TECHNOLOGY SYSTEMS LTD,443725,32.81,720108683
BEIS,Met Office,2020-07-02,11 SERVICES,OPERATIONS,APPLIED SATELLITE TECHNOLOGY SYSTEMS LTD,443727,32.81,720108683
BEIS,Met Office,2020-07-02,11 SERVICES,STRATEGIC INVESTMENT,BAE SYSTEMS APPLIED INTELLIGENCE LIMITED,443812,7480,GB641407169
BEIS,Met Office,2020-07-02,11 SERVICES,STRATEGIC INVESTMENT,BAE SYSTEMS APPLIED INTELLIGENCE LIMITED,443881,14885.04,GB641407169
BEIS,Met Office,2020-07-02,06 ACCOMMODATION,CHIEF FINANCIAL OFFICER,BAE SYSTEMS MARINE LTD,443824,108.1,641407169
BEIS,Met Office,2020-07-02,11 SERVICES,GOVERNMENT SERVICES,BEIS,443880,502860,888825550
BEIS,Met Office,2020-07-02,06 ACCOMMODATION,CHIEF FINANCIAL OFFICER,BRITISH GAS TRADING LTD,443877,5418.09,684966762
BEIS,Met Office,2020-07-02,11 SERVICES,CHIEF FINANCIAL OFFICER,BT PLC,443893,3522.9,245719348
BEIS,Met Office,2020-07-02,13 MISCELLANEOUS,CHIEF FINANCIAL OFFICER,CANON UK LTD,443936,1586.5,523797128
BEIS,Met Office,2020-07-02,06 ACCOMMODATION,CHIEF FINANCIAL OFFICER,ENVIRONMENT AGENCY RECEIPTS,443970,991.97,662490134
BEIS,Met Office,2020-07-02,11 SERVICES,CORPORATE,EQUINITI ICS LTD,443299,1500,915967778
BEIS,Met Office,2020-07-02,11 SERVICES,GOVERNMENT SERVICES,FCO,443931,3047.95,888813560
BEIS,Met Office,2020-07-02,07 EQUIPMENT,OPERATIONS,GAMMA TELECOM LTD,443813,1527.14,823820344
BEIS,Met Office,2020-07-02,11 SERVICES,OPERATIONS,GAMMA TELECOM LTD,443813,1458.44,823820344
BEIS,Met Office,2020-07-02,11 SERVICES,CORPORATE,HAWK INCENTIVES LTD,443029,1753.5,238839422
BEIS,Met Office,2020-07-02,11 SERVICES,CORPORATE,HAWK INCENTIVES LTD,443644,3858.75,238839422
BEIS,Met Office,2020-07-02,04 CONTRACTORS,STRATEGIC INVESTMENT,HAYS SPECIALIST RECRUITMENT LTD,443915,566.25,773695871
BEIS,Met Office,2020-07-02,04 CONTRACTORS,OPERATIONS,HAYS SPECIALIST RECRUITMENT LTD,443916,535.5,773695871
BEIS,Met Office,2020-07-02,04 CONTRACTORS,OPERATIONS,HAYS SPECIALIST RECRUITMENT LTD,443918,535.5,773695871
BEIS,Met Office,2020-07-02,04 CONTRACTORS,OPERATIONS,HAYS SPECIALIST RECRUITMENT LTD,443919,1462,773695871
BEIS,Met Office,2020-07-02,04 CONTRACTORS,OPERATIONS,HAYS SPECIALIST RECRUITMENT LTD,443920,1462,773695871
BEIS,Met Office,2020-07-02,04 CONTRACTORS,OPERATIONS,HAYS SPECIALIST RECRUITMENT LTD,443921,1827.5,773695871
BEIS,Met Office,2020-07-02,04 CONTRACTORS,GOVERNMENT SERVICES,HAYS SPECIALIST RECRUITMENT LTD,443922,183.08,773695871
BEIS,Met Office,2020-07-02,04 CONTRACTORS,TECHNOLOGY,HAYS SPECIALIST RECRUITMENT LTD,443923,581.35,773695871
BEIS,Met Office,2020-07-02,04 CONTRACTORS,BUSINESS GROUP,HAYS SPECIALIST RECRUITMENT LTD,443940,854.37,773695871
BEIS,Met Office,2020-07-02,04 CONTRACTORS,BUSINESS GROUP,HAYS SPECIALIST RECRUITMENT LTD,443941,720.1,773695871
BEIS,Met Office,2020-07-02,11 SERVICES,SUPERCOMPUTING,HOGAN LOVELLS INTERNATIONAL LLP,440312,76684.65,GB123371543
BEIS,Met Office,2020-07-02,11 SERVICES,SUPERCOMPUTING,HOGAN LOVELLS INTERNATIONAL LLP,440314,22114.97,GB123371543
BEIS,Met Office,2020-07-02,11 SERVICES,SUPERCOMPUTING,HOGAN LOVELLS INTERNATIONAL LLP,440337,2509.3,GB123371543
BEIS,Met Office,2020-07-02,11 SERVICES,SUPERCOMPUTING,HOGAN LOVELLS INTERNATIONAL LLP,440339,8726.59,GB123371543
BEIS,Met Office,2020-07-02,11 SERVICES,SUPERCOMPUTING,HOGAN LOVELLS INTERNATIONAL LLP,440340,63376.39,GB123371543
BEIS,Met Office,2020-07-02,11 SERVICES,SUPERCOMPUTING,HOGAN LOVELLS INTERNATIONAL LLP,440342,81193.6,GB123371543
BEIS,Met Office,2020-07-02,11 SERVICES,SUPERCOMPUTING,HOGAN LOVELLS INTERNATIONAL LLP,440343,37857.06,GB123371543
BEIS,Met Office,2020-07-02,11 SERVICES,SUPERCOMPUTING,HOGAN LOVELLS INTERNATIONAL LLP,440344,55785.18,GB123371543
BEIS,Met Office,2020-07-02,11 SERVICES,SUPERCOMPUTING,HOGAN LOVELLS INTERNATIONAL LLP,440345,78199.84,GB123371543
BEIS,Met Office,2020-07-02,11 SERVICES,SUPERCOMPUTING,HOGAN LOVELLS INTERNATIONAL LLP,440371,28625.5,GB123371543
BEIS,Met Office,2020-07-02,11 SERVICES,SUPERCOMPUTING,HOGAN LOVELLS INTERNATIONAL LLP,440371,127.2,GB123371543
BEIS,Met Office,2020-07-02,11 SERVICES,SUPERCOMPUTING,HOGAN LOVELLS INTERNATIONAL LLP,440371,20194.65,GB123371543
BEIS,Met Office,2020-07-02,11 SERVICES,SUPERCOMPUTING,HOGAN LOVELLS INTERNATIONAL LLP,440371,28019.01,GB123371543
BEIS,Met Office,2020-07-02,11 SERVICES,SUPERCOMPUTING,HOGAN LOVELLS INTERNATIONAL LLP,440372,14782.56,GB123371543
BEIS,Met Office,2020-07-02,11 SERVICES,OPERATIONS,INTERNATIONAL MARITIME ORGANIZATION,439701,345,GBN10191242000
BEIS,Met Office,2020-07-02,06 ACCOMMODATION,CHIEF FINANCIAL OFFICER,NATS (EN ROUTE) PLC,443878,3634.9,440379456004
BEIS,Met Office,2020-07-02,11 SERVICES,TECHNOLOGY,NTT DATA UK LTD,442800,40775,GB159334590
BEIS,Met Office,2020-07-02,11 SERVICES,TECHNOLOGY,NTT DATA UK LTD,442800,1215,GB159334590
BEIS,Met Office,2020-07-02,06 ACCOMMODATION,CHIEF FINANCIAL OFFICER,PAUL BAIRD,443876,1846.37,251954452
BEIS,Met Office,2020-07-02,13 MISCELLANEOUS,CHIEF FINANCIAL OFFICER,POSTURITE (UK) LTD,443882,21.67,583565114
BEIS,Met Office,2020-07-02,13 MISCELLANEOUS,CHIEF FINANCIAL OFFICER,POSTURITE (UK) LTD,443886,22.42,583565114
BEIS,Met Office,2020-07-02,13 MISCELLANEOUS,CHIEF FINANCIAL OFFICER,POSTURITE (UK) LTD,443887,170.47,583565114
BEIS,Met Office,2020-07-02,13 MISCELLANEOUS,CHIEF FINANCIAL OFFICER,POSTURITE (UK) LTD,443888,170.47,583565114
BEIS,Met Office,2020-07-02,13 MISCELLANEOUS,CHIEF FINANCIAL OFFICER,POSTURITE (UK) LTD,443889,170.47,583565114
BEIS,Met Office,2020-07-02,07 EQUIPMENT,OPERATIONS,PRECISION WATERJET LTD,443737,103.9,879979318
BEIS,Met Office,2020-07-02,07 EQUIPMENT,OPERATIONS,PRECISION WATERJET LTD,443737,15,879979318
BEIS,Met Office,2020-07-02,07 EQUIPMENT,OPERATIONS,PRECISION WATERJET LTD,443737,116,879979318
BEIS,Met Office,2020-07-02,04 CONTRACTORS,STRATEGIC INVESTMENT,QUALSERV CONSULTING LTD,443924,9000,719067718
BEIS,Met Office,2020-07-02,04 CONTRACTORS,CHIEF FINANCIAL OFFICER,QUALSERV CONSULTING LTD,443925,372.1,719067718
BEIS,Met Office,2020-07-02,04 CONTRACTORS,CORPORATE,QUALSERV CONSULTING LTD,443925,6600,719067718
BEIS,Met Office,2020-07-02,04 CONTRACTORS,CORPORATE,QUALSERV CONSULTING LTD,443926,7200,719067718
BEIS,Met Office,2020-07-02,04 CONTRACTORS,STRATEGIC INVESTMENT,QUALSERV CONSULTING LTD,443927,9411.84,719067718
BEIS,Met Office,2020-07-02,04 CONTRACTORS,TECHNOLOGY,QUALSERV CONSULTING LTD,443928,9768.6,719067718
BEIS,Met Office,2020-07-02,04 CONTRACTORS,GOVERNMENT SERVICES,QUALSERV CONSULTING LTD,443929,9000,719067718
BEIS,Met Office,2020-07-02,04 CONTRACTORS,TECHNOLOGY,QUALSERV CONSULTING LTD,443930,11868,719067718
BEIS,Met Office,2020-07-02,11 SERVICES,CORPORATE,QUESTBACK LIMITED,443794,9219.17,GB 864 1783 01
BEIS,Met Office,2020-07-02,06 ACCOMMODATION,CHIEF FINANCIAL OFFICER,REDACTED PERSONAL DATA,443875,100,NOTVATREGD
BEIS,Met Office,2020-07-02,04 CONTRACTORS,OPERATIONS,REDACTED PERSONAL DATA,443984,1893.34,267253251
BEIS,Met Office,2020-07-02,06 ACCOMMODATION,CHIEF FINANCIAL OFFICER,Scottish Natural Heritage,443885,800,553740540
BEIS,Met Office,2020-07-02,STOCK,OPERATIONS,SEMATRON UK LTD,443815,0,537664613
BEIS,Met Office,2020-07-02,STOCK,OPERATIONS,SEMATRON UK LTD,443815,19652.24,537664613
BEIS,Met Office,2020-07-02,11 SERVICES,OPERATIONS,SEMATRON UK LTD,443815,15,537664613
BEIS,Met Office,2020-07-02,06 ACCOMMODATION,CHIEF FINANCIAL OFFICER,SOUTH WEST WATER LTD,443969,38.72,236873674
BEIS,Met Office,2020-07-02,11 SERVICES,CHIEF FINANCIAL OFFICER,TELEFONICA O2 UK LIMITED,443897,50,778603785
BEIS,Met Office,2020-07-02,12 INTERNATIONAL,OPERATIONS,TRIPOS CONSULTANTS,443937,1582.03,610652671
BEIS,Met Office,2020-07-02,06 ACCOMMODATION,CHIEF FINANCIAL OFFICER,TULLY FARM HOLDINGS T/A CONTRACT SERVICES,443716,55,872632707
BEIS,Met Office,2020-07-02,06 ACCOMMODATION,CHIEF FINANCIAL OFFICER,TULLY FARM HOLDINGS T/A CONTRACT SERVICES,443717,162.85,872632707
BEIS,Met Office,2020-07-02,11 SERVICES,GOVERNMENT SERVICES,UK CENTRE FOR ECOLOGY & HYDROLOGY (UKCEH),443896,95572,336940192
BEIS,Met Office,2020-07-02,11 SERVICES,GOVERNMENT SERVICES,UKRI,443892,21716.69,GB287461957
BEIS,Met Office,2020-07-02,11 SERVICES,OPERATIONS,VOLKSWAGEN GROUP LEASING,443898,3697.1,BG745963883
BEIS,Met Office,2020-07-02,11 SERVICES,OPERATIONS,VOLKSWAGEN GROUP LEASING,443899,3924.25,BG745963883
BEIS,Met Office,2020-07-02,11 SERVICES,OPERATIONS,VOLKSWAGEN GROUP LEASING,443900,3924.25,BG745963883
BEIS,Met Office,2020-07-02,11 SERVICES,OPERATIONS,VOLKSWAGEN GROUP LEASING,443901,3924.25,BG745963883
BEIS,Met Office,2020-07-02,11 SERVICES,OPERATIONS,VOLKSWAGEN GROUP LEASING,443902,3924.25,BG745963883
BEIS,Met Office,2020-07-02,11 SERVICES,OPERATIONS,VOLKSWAGEN GROUP LEASING,443903,3924.25,BG745963883
BEIS,Met Office,2020-07-02,11 SERVICES,OPERATIONS,VOLKSWAGEN GROUP LEASING,443904,3697.1,BG745963883
BEIS,Met Office,2020-07-02,11 SERVICES,OPERATIONS,VOLKSWAGEN GROUP LEASING,443905,3697.1,BG745963883
BEIS,Met Office,2020-07-02,11 SERVICES,OPERATIONS,VOLKSWAGEN GROUP LEASING,443906,3697.1,BG745963883
BEIS,Met Office,2020-07-02,11 SERVICES,OPERATIONS,VOLKSWAGEN GROUP LEASING,443907,3697.1,BG745963883
BEIS,Met Office,2020-07-02,11 SERVICES,OPERATIONS,VOLKSWAGEN GROUP LEASING,443908,3697.1,BG745963883
BEIS,Met Office,2020-07-02,04 CONTRACTORS,STRATEGIC INVESTMENT,WA CONSULTANTS LTD,443945,13500,876328977
BEIS,Met Office,2020-07-02,04 CONTRACTORS,TECHNOLOGY,WA CONSULTANTS LTD,443946,14000,876328977
BEIS,Met Office,2020-07-02,04 CONTRACTORS,CHIEF FINANCIAL OFFICER,WA CONSULTANTS LTD,443947,15000,876328977
BEIS,Met Office,2020-07-02,04 CONTRACTORS,TECHNOLOGY,WA CONSULTANTS LTD,443948,12360,876328977
BEIS,Met Office,2020-07-02,04 CONTRACTORS,CHIEF FINANCIAL OFFICER,WA CONSULTANTS LTD,443949,10767.4,876328977
BEIS,Met Office,2020-07-02,04 CONTRACTORS,TECHNOLOGY,WA CONSULTANTS LTD,443950,10000,876328977
BEIS,Met Office,2020-07-02,04 CONTRACTORS,TECHNOLOGY,WA CONSULTANTS LTD,443951,10761,876328977
BEIS,Met Office,2020-07-02,04 CONTRACTORS,STRATEGIC INVESTMENT,WA CONSULTANTS LTD,443952,8800,876328977
BEIS,Met Office,2020-07-02,04 CONTRACTORS,TECHNOLOGY,WA CONSULTANTS LTD,443953,11636.6,876328977
BEIS,Met Office,2020-07-02,04 CONTRACTORS,STRATEGIC INVESTMENT,WA CONSULTANTS LTD,443954,8951.2,876328977
BEIS,Met Office,2020-07-02,04 CONTRACTORS,OPERATIONS,WA CONSULTANTS LTD,443955,10450,876328977
BEIS,Met Office,2020-07-02,04 CONTRACTORS,SUPERCOMPUTING,WA CONSULTANTS LTD,443956,18652,876328977
BEIS,Met Office,2020-07-02,04 CONTRACTORS,CHIEF FINANCIAL OFFICER,WA CONSULTANTS LTD,443957,7733,876328977
BEIS,Met Office,2020-07-02,04 CONTRACTORS,TECHNOLOGY,WA CONSULTANTS LTD,443958,8526.9,876328977
BEIS,Met Office,2020-07-02,11 SERVICES,CORPORATE,XEXEC LTD,442804,680,766127320
BEIS,Met Office,2020-07-07,11 SERVICES,GOVERNMENT SERVICES,CENTRO INTERNACIONAL DE AGRICULTURA TROPICAL,440288,4127,na
BEIS,Met Office,2020-07-07,11 SERVICES,GOVERNMENT SERVICES,CENTRO INTERNACIONAL DE AGRICULTURA TROPICAL,442797,16613,na
BEIS,Met Office,2020-07-07,11 SERVICES,GOVERNMENT SERVICES,CENTRO INTERNACIONAL DE AGRICULTURA TROPICAL,444241,-16613,na
BEIS,Met Office,2020-07-07,11 SERVICES,GOVERNMENT SERVICES,CENTRO INTERNACIONAL DE AGRICULTURA TROPICAL,444242,-4127,na
BEIS,Met Office,2020-07-08,11 SERVICES,TECHNOLOGY,AMAZON WEB SERVICES INC.,9840,12024.72,N/A
BEIS,Met Office,2020-07-08,11 SERVICES,OPERATIONS,"AXYS TECHNOLOGIES, INC",9849,121.15,-
BEIS,Met Office,2020-07-08,11 SERVICES,TECHNOLOGY,BLOOMREACH B.V.,443365,10493.88,NL815260076B01
BEIS,Met Office,2020-07-08,11 SERVICES,SCIENCE,CNRS,21574,83083.27,FR40180089013
BEIS,Met Office,2020-07-08,PAYE AND VAT,OTHER,COMMUNICATIONS & POWER IND. EUROPE LTD,9851,0,664103850
BEIS,Met Office,2020-07-08,08 SOFTWARE LICENCES,OPERATIONS,EUMETNET - EIG,21545,525,-
BEIS,Met Office,2020-07-08,11 SERVICES,GOVERNMENT SERVICES,Eumetsat,21535,5349.07,VE
BEIS,Met Office,2020-07-08,11 SERVICES,OPERATIONS,"EUTELSAT MADERIA, UNIPESSOAL LDA",21544,2317.04,PT511283733
BEIS,Met Office,2020-07-08,11 SERVICES,OPERATIONS,"EUTELSAT, S.A.",21546,3918.73,-
BEIS,Met Office,2020-07-08,11 SERVICES,OPERATIONS,"EUTELSAT, S.A.",21547,3041.69,-
BEIS,Met Office,2020-07-08,08 SOFTWARE LICENCES,TECHNOLOGY,GITHUB INC,9841,1987.04,-
BEIS,Met Office,2020-07-08,08 SOFTWARE LICENCES,TECHNOLOGY,"IBL SOFTWARE ENGINEERING, SPOL S.R.O.",441778,7348.54,SK2020241883
BEIS,Met Office,2020-07-08,08 SOFTWARE LICENCES,TECHNOLOGY,"IBL SOFTWARE ENGINEERING, SPOL S.R.O.",441778,29823.63,SK2020241883
BEIS,Met Office,2020-07-08,11 SERVICES,GOVERNMENT SERVICES,"INTELLOVATIONS, LLC",9822,2200.2,-
BEIS,Met Office,2020-07-08,11 SERVICES,GOVERNMENT SERVICES,KENYA RED CROSS SOCIETY,444160,38308.42,-
BEIS,Met Office,2020-07-08,11 SERVICES,GOVERNMENT SERVICES,NORWEGIAN METEOROLOGICAL INST,21567,24065.68,NO971274042MVA
BEIS,Met Office,2020-07-08,11 SERVICES,SCIENCE,PETER WALTON,21538,891.51,-
BEIS,Met Office,2020-07-08,12 INTERNATIONAL,OPERATIONS,REDACTED PERSONAL DATA,9852,2826.8,-
BEIS,Met Office,2020-07-09,06 ACCOMMODATION,CHIEF FINANCIAL OFFICER,ABOVE THE REST COMMERCIAL CLEANING LTD,443973,565,166969348
BEIS,Met Office,2020-07-09,11 SERVICES,GOVERNMENT SERVICES,ADOPSTAR,444088,1250,115036848
BEIS,Met Office,2020-07-09,11 SERVICES,GOVERNMENT SERVICES,AECOM INFRASTRUCTURE & ENVIRONMENT UK LTD,444039,3371.57,611853162
BEIS,Met Office,2020-07-09,11 SERVICES,GOVERNMENT SERVICES,AECOM INFRASTRUCTURE & ENVIRONMENT UK LTD,444039,832.5,611853162
BEIS,Met Office,2020-07-09,03 STAFF COSTS T&S,OPERATIONS,AIRPORT CAR RENTALS LTD,444257,320,-
BEIS,Met Office,2020-07-09,08 SOFTWARE LICENCES,TECHNOLOGY,AIT PARNERSHIP GROUP LTD,444307,4250,GB860205553
BEIS,Met Office,2020-07-09,08 SOFTWARE LICENCES,TECHNOLOGY,AIT PARNERSHIP GROUP LTD,444308,425,GB860205553
BEIS,Met Office,2020-07-09,11 SERVICES,TECHNOLOGY,AKAMAI TECHNOLOGIES LTD,444288,4918.08,745091237
BEIS,Met Office,2020-07-09,11 SERVICES,TECHNOLOGY,AKAMAI TECHNOLOGIES LTD,444288,25819.95,745091237
BEIS,Met Office,2020-07-09,11 SERVICES,CHIEF FINANCIAL OFFICER,ALLSTAR BUSINESS SOLUTIONS LTD,444143,1379.94,747880191
BEIS,Met Office,2020-07-09,11 SERVICES,STRATEGIC INVESTMENT,BAE SYSTEMS APPLIED INTELLIGENCE LIMITED,444033,13562.5,GB641407169
BEIS,Met Office,2020-07-09,11 SERVICES,STRATEGIC INVESTMENT,BAE SYSTEMS APPLIED INTELLIGENCE LIMITED,444055,21200,GB641407169
BEIS,Met Office,2020-07-09,11 SERVICES,STRATEGIC INVESTMENT,BAE SYSTEMS APPLIED INTELLIGENCE LIMITED,444056,18825,GB641407169
BEIS,Met Office,2020-07-09,INFORMATION TECHNOLOGY,TECHNOLOGY,BT BUSINESS DIRECT,444150,4781.44,GB 245 7193 48
BEIS,Met Office,2020-07-09,INFORMATION TECHNOLOGY,TECHNOLOGY,BT BUSINESS DIRECT,444150,1591.6,GB 245 7193 48
BEIS,Met Office,2020-07-09,11 SERVICES,CORPORATE,BUILTVISIBLE LIMITED,444093,2000,981586376
BEIS,Met Office,2020-07-09,11 SERVICES,BUSINESS GROUP,CACI LTD,444302,15899.25,380609841
BEIS,Met Office,2020-07-09,INFORMATION TECHNOLOGY,STRATEGIC INVESTMENT,Campbell Scientific Ltd,440819,951.2,428453933
BEIS,Met Office,2020-07-09,INFORMATION TECHNOLOGY,STRATEGIC INVESTMENT,Campbell Scientific Ltd,442304,9342,428453933
BEIS,Met Office,2020-07-09,INFORMATION TECHNOLOGY,STRATEGIC INVESTMENT,Campbell Scientific Ltd,442669,41104.8,428453933
BEIS,Met Office,2020-07-09,13 MISCELLANEOUS,CHIEF FINANCIAL OFFICER,CANON UK LTD,443977,2764.58,523797128
BEIS,Met Office,2020-07-09,13 MISCELLANEOUS,CHIEF FINANCIAL OFFICER,CANON UK LTD,443977,53.84,523797128
BEIS,Met Office,2020-07-09,13 MISCELLANEOUS,CHIEF FINANCIAL OFFICER,CANON UK LTD,443977,125.64,523797128
BEIS,Met Office,2020-07-09,13 MISCELLANEOUS,CHIEF FINANCIAL OFFICER,CANON UK LTD,443977,7.64,523797128
BEIS,Met Office,2020-07-09,13 MISCELLANEOUS,CHIEF FINANCIAL OFFICER,CANON UK LTD,443977,15.52,523797128
BEIS,Met Office,2020-07-09,13 MISCELLANEOUS,CHIEF FINANCIAL OFFICER,CANON UK LTD,443977,89.74,523797128
BEIS,Met Office,2020-07-09,13 MISCELLANEOUS,CHIEF FINANCIAL OFFICER,CANON UK LTD,443977,89.74,523797128
BEIS,Met Office,2020-07-09,13 MISCELLANEOUS,CHIEF FINANCIAL OFFICER,CANON UK LTD,443977,89.74,523797128
BEIS,Met Office,2020-07-09,13 MISCELLANEOUS,CHIEF FINANCIAL OFFICER,CANON UK LTD,443977,89.74,523797128
BEIS,Met Office,2020-07-09,06 ACCOMMODATION,CHIEF FINANCIAL OFFICER,CARDIFF EXECUTIVE CENTRE LTD,444191,2470,864497378
BEIS,Met Office,2020-07-09,03 STAFF COSTS T&S,OPERATIONS,CARTUS FINANCING LTD,444185,30.5,768489458
BEIS,Met Office,2020-07-09,03 STAFF COSTS T&S,OPERATIONS,CARTUS LTD,441270,75,768489458
BEIS,Met Office,2020-07-09,03 STAFF COSTS T&S,OPERATIONS,CARTUS LTD,441271,1553.5,768489458
BEIS,Met Office,2020-07-09,03 STAFF COSTS T&S,OPERATIONS,CARTUS LTD,441274,858,768489458
BEIS,Met Office,2020-07-09,11 SERVICES,OPERATIONS,CATALYST IT,444127,1301.87,978169262
BEIS,Met Office,2020-07-09,06 ACCOMMODATION,CHIEF FINANCIAL OFFICER,CBRE,444252,3212.43,863613615
BEIS,Met Office,2020-07-09,06 ACCOMMODATION,CHIEF FINANCIAL OFFICER,CBRE MANAGED SERVICES LTD,444108,13827.17,853936883
BEIS,Met Office,2020-07-09,08 SOFTWARE LICENCES,CHIEF FINANCIAL OFFICER,CEMAR,444057,450,915042161
BEIS,Met Office,2020-07-09,08 SOFTWARE LICENCES,CHIEF FINANCIAL OFFICER,CEMAR,444059,39,915042161
BEIS,Met Office,2020-07-09,08 SOFTWARE LICENCES,CHIEF FINANCIAL OFFICER,CEMAR,444059,995,915042161
BEIS,Met Office,2020-07-09,08 SOFTWARE LICENCES,CHIEF FINANCIAL OFFICER,CEMAR,444115,180,915042161
BEIS,Met Office,2020-07-09,11 SERVICES,GOVERNMENT SERVICES,Cgi It Uk Limited,442366,2416.88,232615194
BEIS,Met Office,2020-07-09,06 ACCOMMODATION,CHIEF FINANCIAL OFFICER,CLEANING MATTERS BEDFORD LTD,444060,393.6,847592286
BEIS,Met Office,2020-07-09,06 ACCOMMODATION,CHIEF FINANCIAL OFFICER,CLEANING MATTERS BEDFORD LTD,444061,714,847592286
BEIS,Met Office,2020-07-09,11 SERVICES,TECHNOLOGY,CLOUDREACH EUROPE LIMITED,444202,7110,978187168
BEIS,Met Office,2020-07-09,05 CONSULTANTS,STRATEGIC INVESTMENT,CMC PARTNERSHIP CONSULTANCY LTD,444173,10950,305803330
BEIS,Met Office,2020-07-09,05 CONSULTANTS,STRATEGIC INVESTMENT,CMC PARTNERSHIP CONSULTANCY LTD,444234,20790,305803330
BEIS,Met Office,2020-07-09,10 EQUIPMENT MAINTENANCE,TECHNOLOGY,COMPUTACENTER (UK) LTD,444036,3707.66,490334648
BEIS,Met Office,2020-07-09,07 EQUIPMENT,TECHNOLOGY,COMPUTACENTER (UK) LTD,444065,4834.5,490334648
BEIS,Met Office,2020-07-09,INFORMATION TECHNOLOGY,TECHNOLOGY,COMPUTACENTER (UK) LTD,444078,32260.36,490334648
BEIS,Met Office,2020-07-09,10 EQUIPMENT MAINTENANCE,TECHNOLOGY,COMPUTACENTER (UK) LTD,444110,12912.98,490334648
BEIS,Met Office,2020-07-09,10 EQUIPMENT MAINTENANCE,TECHNOLOGY,COMPUTACENTER (UK) LTD,444148,2865.01,490334648
BEIS,Met Office,2020-07-09,08 SOFTWARE LICENCES,TECHNOLOGY,COMPUTACENTER (UK) LTD,444170,1079.72,490334648
BEIS,Met Office,2020-07-09,CYCLESCHEME,OTHER,CYCLESCHEME LTD,444195,832.5,850403556
BEIS,Met Office,2020-07-09,CYCLESCHEME,OTHER,CYCLESCHEME LTD,444196,833.33,850403556
BEIS,Met Office,2020-07-09,CYCLESCHEME,OTHER,CYCLESCHEME LTD,444198,250,850403556
BEIS,Met Office,2020-07-09,CYCLESCHEME,OTHER,CYCLESCHEME LTD,444199,662.5,850403556
BEIS,Met Office,2020-07-09,CYCLESCHEME,OTHER,CYCLESCHEME LTD,444200,833.33,850403556
BEIS,Met Office,2020-07-09,CYCLESCHEME,OTHER,CYCLESCHEME LTD,444201,832.5,850403556
BEIS,Met Office,2020-07-09,11 SERVICES,CHIEF FINANCIAL OFFICER,DBS FINANCE RECEIPTS CTS,444169,178.86,888805068
BEIS,Met Office,2020-07-09,11 SERVICES,CHIEF FINANCIAL OFFICER,DIGITAL COMMUNICATIONS SYSTEMS LIMITED,444066,5481.42,GB 556 1971 19
BEIS,Met Office,2020-07-09,05 CONSULTANTS,BUSINESS GROUP,EARTH WIND FIRE AND WATER,444076,281.25,243759288
BEIS,Met Office,2020-07-09,11 SERVICES,CHIEF FINANCIAL OFFICER,EAST ANGLIAN WATER COOLER CO,444109,17.6,676668178
BEIS,Met Office,2020-07-09,11 SERVICES,STRATEGIC INVESTMENT,ELASTICSEARCH LTD,444177,4354.72,155790484
BEIS,Met Office,2020-07-09,03 STAFF COSTS T&S,CHIEF FINANCIAL OFFICER,ENTERPRISE RENT A CAR UK LTD,444028,556.86,215557314
BEIS,Met Office,2020-07-09,03 STAFF COSTS T&S,CHIEF FINANCIAL OFFICER,ENTERPRISE RENT A CAR UK LTD,444029,461.33,215557314
BEIS,Met Office,2020-07-09,03 STAFF COSTS T&S,CHIEF FINANCIAL OFFICER,ENTERPRISE RENT A CAR UK LTD,444030,671.58,215557314
BEIS,Met Office,2020-07-09,03 STAFF COSTS T&S,CHIEF FINANCIAL OFFICER,ENTERPRISE RENT A CAR UK LTD,444032,300.9,215557314
BEIS,Met Office,2020-07-09,03 STAFF COSTS T&S,CHIEF FINANCIAL OFFICER,ENTERPRISE RENT A CAR UK LTD,444298,132.53,215557314
BEIS,Met Office,2020-07-09,11 SERVICES,CORPORATE,EQUINITI ICS LTD,444151,6846,915967778
BEIS,Met Office,2020-07-09,11 SERVICES,CORPORATE,EQUINITI ICS LTD,444153,316.66,915967778
BEIS,Met Office,2020-07-09,04 CONTRACTORS,TECHNOLOGY,FDM GROUP LIMITED,444274,5940,583540529
BEIS,Met Office,2020-07-09,04 CONTRACTORS,TECHNOLOGY,FDM GROUP LIMITED,444275,5796,583540529
BEIS,Met Office,2020-07-09,04 CONTRACTORS,TECHNOLOGY,FDM GROUP LIMITED,444276,5940,583540529
BEIS,Met Office,2020-07-09,04 CONTRACTORS,TECHNOLOGY,FDM GROUP LIMITED,444277,5130,583540529
BEIS,Met Office,2020-07-09,FIXTURE & FITTINGS,CHIEF FINANCIAL OFFICER,FMS INTERIOR SERVICES LTD,443894,192.96,922056940
BEIS,Met Office,2020-07-09,FIXTURE & FITTINGS,CHIEF FINANCIAL OFFICER,FMS INTERIOR SERVICES LTD,443894,170.56,922056940
BEIS,Met Office,2020-07-09,FIXTURE & FITTINGS,CHIEF FINANCIAL OFFICER,FMS INTERIOR SERVICES LTD,443894,5095.36,922056940
BEIS,Met Office,2020-07-09,FIXTURE & FITTINGS,CHIEF FINANCIAL OFFICER,FMS INTERIOR SERVICES LTD,443894,2744,922056940
BEIS,Met Office,2020-07-09,FIXTURE & FITTINGS,CHIEF FINANCIAL OFFICER,FMS INTERIOR SERVICES LTD,443894,899.34,922056940
BEIS,Met Office,2020-07-09,FIXTURE & FITTINGS,CHIEF FINANCIAL OFFICER,FMS INTERIOR SERVICES LTD,443894,178.24,922056940
BEIS,Met Office,2020-07-09,FIXTURE & FITTINGS,CHIEF FINANCIAL OFFICER,FMS INTERIOR SERVICES LTD,443894,560,922056940
BEIS,Met Office,2020-07-09,FIXTURE & FITTINGS,CHIEF FINANCIAL OFFICER,FMS INTERIOR SERVICES LTD,444176,13.2,922056940
BEIS,Met Office,2020-07-09,FIXTURE & FITTINGS,CHIEF FINANCIAL OFFICER,FMS INTERIOR SERVICES LTD,444176,440,922056940
BEIS,Met Office,2020-07-09,06 ACCOMMODATION,CHIEF FINANCIAL OFFICER,FOX GROUNDS MAINTENANCE & LANDSCAPING LTD,444197,305.66,129495383
BEIS,Met Office,2020-07-09,11 SERVICES,CHIEF FINANCIAL OFFICER,FSI (FM SOLUTIONS) LTD,443968,2550,166398173
BEIS,Met Office,2020-07-09,11 SERVICES,CHIEF FINANCIAL OFFICER,FSI (FM SOLUTIONS) LTD,444188,1700,166398173
BEIS,Met Office,2020-07-09,11 SERVICES,CHIEF FINANCIAL OFFICER,FSI (FM SOLUTIONS) LTD,444188,1700,166398173
BEIS,Met Office,2020-07-09,06 ACCOMMODATION,CHIEF FINANCIAL OFFICER,GBC LTD,444142,162.24,859903672
BEIS,Met Office,2020-07-09,06 ACCOMMODATION,CHIEF FINANCIAL OFFICER,GBC LTD,444142,184.8,859903672
BEIS,Met Office,2020-07-09,08 SOFTWARE LICENCES,TECHNOLOGY,GOOGLE IRELAND LTD,444184,39.79,6388047V
BEIS,Met Office,2020-07-09,06 ACCOMMODATION,CHIEF FINANCIAL OFFICER,HAFREN DYFRDWY CYFYNGEDIG,443264,-195,486985565
BEIS,Met Office,2020-07-09,06 ACCOMMODATION,CHIEF FINANCIAL OFFICER,HAFREN DYFRDWY CYFYNGEDIG,444251,375,486985565
BEIS,Met Office,2020-07-09,08 SOFTWARE LICENCES,TECHNOLOGY,Harper Collins Publishers Ltd,440390,830,259639706
BEIS,Met Office,2020-07-09,11 SERVICES,CHIEF FINANCIAL OFFICER,HARPER MACLEOD LLP,444255,186,762130557
BEIS,Met Office,2020-07-09,11 SERVICES,CORPORATE,HAWK INCENTIVES LTD,444327,5400,238839422
BEIS,Met Office,2020-07-09,11 SERVICES,CORPORATE,HAWK INCENTIVES LTD,444327,270,238839422
BEIS,Met Office,2020-07-09,04 CONTRACTORS,OPERATIONS,HAYS SPECIALIST RECRUITMENT LTD,444090,366.15,773695871
BEIS,Met Office,2020-07-09,04 CONTRACTORS,OPERATIONS,HAYS SPECIALIST RECRUITMENT LTD,444091,366.16,773695871
BEIS,Met Office,2020-07-09,04 CONTRACTORS,OPERATIONS,HAYS SPECIALIST RECRUITMENT LTD,444106,366.16,773695871
BEIS,Met Office,2020-07-09,04 CONTRACTORS,TECHNOLOGY,HAYS SPECIALIST RECRUITMENT LTD,444167,596.45,773695871
BEIS,Met Office,2020-07-09,04 CONTRACTORS,STRATEGIC INVESTMENT,HAYS SPECIALIST RECRUITMENT LTD,444168,520.95,773695871
BEIS,Met Office,2020-07-09,04 CONTRACTORS,GOVERNMENT SERVICES,HAYS SPECIALIST RECRUITMENT LTD,444179,183.08,773695871
BEIS,Met Office,2020-07-09,04 CONTRACTORS,OPERATIONS,HAYS SPECIALIST RECRUITMENT LTD,444180,366.15,773695871
BEIS,Met Office,2020-07-09,04 CONTRACTORS,OPERATIONS,HAYS SPECIALIST RECRUITMENT LTD,444266,-255,773695871
BEIS,Met Office,2020-07-09,04 CONTRACTORS,OPERATIONS,HAYS SPECIALIST RECRUITMENT LTD,444287,-255,773695871
BEIS,Met Office,2020-07-09,04 CONTRACTORS,OPERATIONS,HAYS SPECIALIST RECRUITMENT LTD,444292,-255,773695871
BEIS,Met Office,2020-07-09,04 CONTRACTORS,OPERATIONS,HAYS SPECIALIST RECRUITMENT LTD,444294,-255,773695871
BEIS,Met Office,2020-07-09,04 CONTRACTORS,OPERATIONS,HAYS SPECIALIST RECRUITMENT LTD,444296,-255,773695871
BEIS,Met Office,2020-07-09,04 CONTRACTORS,OPERATIONS,HAYS SPECIALIST RECRUITMENT LTD,444297,-255,773695871
BEIS,Met Office,2020-07-09,06 ACCOMMODATION,CHIEF FINANCIAL OFFICER,HIGHLANDS & ISLANDS AIRPORTS LTD.,444069,85.54,945667772
BEIS,Met Office,2020-07-09,06 ACCOMMODATION,CHIEF FINANCIAL OFFICER,HUNTSHAM ESTATE - CROSS NO.1 SETTLEMENT,444040,5065.16,-
BEIS,Met Office,2020-07-09,08 SOFTWARE LICENCES,TECHNOLOGY,IBM UNITED KINGDOM LTD,444165,9411.7,107328000
BEIS,Met Office,2020-07-09,10 EQUIPMENT MAINTENANCE,TECHNOLOGY,IP PERFORMANCE LTD,444149,7233,650541851
BEIS,Met Office,2020-07-09,04 CONTRACTORS,GOVERNMENT SERVICES,JOBSEEKERS RECRUITMENT SERVICES LTD,444042,813.66,130 1297 14
BEIS,Met Office,2020-07-09,04 CONTRACTORS,GOVERNMENT SERVICES,JOBSEEKERS RECRUITMENT SERVICES LTD,444043,538.2,130 1297 14
BEIS,Met Office,2020-07-09,04 CONTRACTORS,GOVERNMENT SERVICES,JOBSEEKERS RECRUITMENT SERVICES LTD,444044,928.26,130 1297 14
BEIS,Met Office,2020-07-09,04 CONTRACTORS,OPERATIONS,JOBSEEKERS RECRUITMENT SERVICES LTD,444048,684.23,130 1297 14
BEIS,Met Office,2020-07-09,04 CONTRACTORS,GOVERNMENT SERVICES,JOBSEEKERS RECRUITMENT SERVICES LTD,444075,663.78,130 1297 14
BEIS,Met Office,2020-07-09,04 CONTRACTORS,GOVERNMENT SERVICES,JOBSEEKERS RECRUITMENT SERVICES LTD,444077,403.65,130 1297 14
BEIS,Met Office,2020-07-09,FIXTURE & FITTINGS,CHIEF FINANCIAL OFFICER,LARS COMMUNICATIONS LTD,444113,1150,531463858
BEIS,Met Office,2020-07-09,07 EQUIPMENT,OPERATIONS,M C ENGINEERING SERVICES,444092,222.25,813172066
BEIS,Met Office,2020-07-09,11 SERVICES,OPERATIONS,MOMENTUM INCORPORATED,444164,13320,598958541
BEIS,Met Office,2020-07-09,06 ACCOMMODATION,CHIEF FINANCIAL OFFICER,MORAY COUNCIL,444105,170.82,663755506
BEIS,Met Office,2020-07-09,12 INTERNATIONAL,OPERATIONS,MYACORN LTD,444189,8850,-
BEIS,Met Office,2020-07-09,06 ACCOMMODATION,CHIEF FINANCIAL OFFICER,NESS ENGINEERING LTD,444154,353.69,430188472
BEIS,Met Office,2020-07-09,06 ACCOMMODATION,CHIEF FINANCIAL OFFICER,NESS ENGINEERING LTD,444155,311.63,430188472
BEIS,Met Office,2020-07-09,10 EQUIPMENT MAINTENANCE,TECHNOLOGY,NEXUS OPEN SYSTEMS LTD,444102,4009.66,723221673
BEIS,Met Office,2020-07-09,06 ACCOMMODATION,GOVERNMENT SERVICES,Northern Lighthouse Board,444111,2903.7,268628908
BEIS,Met Office,2020-07-09,06 ACCOMMODATION,CHIEF FINANCIAL OFFICER,OCS Group UK Limited,444159,114207.51,GB238034379
BEIS,Met Office,2020-07-09,11 SERVICES,CORPORATE,OPUS PERFORMANCE LTD,444237,3300,831961423
BEIS,Met Office,2020-07-09,04 CONTRACTORS,TECHNOLOGY,OUTSOURCE UK LIMITED,444116,13000,576118722
BEIS,Met Office,2020-07-09,04 CONTRACTORS,TECHNOLOGY,OUTSOURCE UK LIMITED,444117,10637.5,576118722
BEIS,Met Office,2020-07-09,04 CONTRACTORS,TECHNOLOGY,OUTSOURCE UK LIMITED,444118,8924.8,576118722
BEIS,Met Office,2020-07-09,04 CONTRACTORS,TECHNOLOGY,OUTSOURCE UK LIMITED,444119,5434.8,576118722
BEIS,Met Office,2020-07-09,04 CONTRACTORS,CHIEF FINANCIAL OFFICER,OUTSOURCE UK LIMITED,444120,8492.4,576118722
BEIS,Met Office,2020-07-09,04 CONTRACTORS,TECHNOLOGY,OUTSOURCE UK LIMITED,444121,8924.8,576118722
BEIS,Met Office,2020-07-09,04 CONTRACTORS,STRATEGIC INVESTMENT,OUTSOURCE UK LIMITED,444122,9846.2,576118722
BEIS,Met Office,2020-07-09,04 CONTRACTORS,STRATEGIC INVESTMENT,OUTSOURCE UK LIMITED,444123,8964.01,576118722
BEIS,Met Office,2020-07-09,04 CONTRACTORS,CORPORATE,OUTSOURCE UK LIMITED,444124,6989.2,576118722
BEIS,Met Office,2020-07-09,04 CONTRACTORS,TECHNOLOGY,OUTSOURCE UK LIMITED,444125,9548.64,576118722
BEIS,Met Office,2020-07-09,04 CONTRACTORS,OPERATIONS,OUTSOURCE UK LIMITED,444128,9462.4,576118722
BEIS,Met Office,2020-07-09,04 CONTRACTORS,TECHNOLOGY,OUTSOURCE UK LIMITED,444129,8924.8,576118722
BEIS,Met Office,2020-07-09,04 CONTRACTORS,TECHNOLOGY,OUTSOURCE UK LIMITED,444130,8775,576118722
BEIS,Met Office,2020-07-09,04 CONTRACTORS,TECHNOLOGY,OUTSOURCE UK LIMITED,444131,17000,576118722
BEIS,Met Office,2020-07-09,04 CONTRACTORS,CORPORATE,OUTSOURCE UK LIMITED,444132,6000,576118722
BEIS,Met Office,2020-07-09,04 CONTRACTORS,TECHNOLOGY,OUTSOURCE UK LIMITED,444133,10359,576118722
BEIS,Met Office,2020-07-09,04 CONTRACTORS,CHIEF FINANCIAL OFFICER,OUTSOURCE UK LIMITED,444134,11056.7,576118722
BEIS,Met Office,2020-07-09,04 CONTRACTORS,TECHNOLOGY,OUTSOURCE UK LIMITED,444136,8205.2,576118722
BEIS,Met Office,2020-07-09,04 CONTRACTORS,TECHNOLOGY,OUTSOURCE UK LIMITED,444137,8043.4,576118722
BEIS,Met Office,2020-07-09,04 CONTRACTORS,TECHNOLOGY,OUTSOURCE UK LIMITED,444138,8179.45,576118722
BEIS,Met Office,2020-07-09,04 CONTRACTORS,TECHNOLOGY,OUTSOURCE UK LIMITED,444139,6537.6,576118722
BEIS,Met Office,2020-07-09,04 CONTRACTORS,CHIEF FINANCIAL OFFICER,OUTSOURCE UK LIMITED,444140,8924.6,576118722
BEIS,Met Office,2020-07-09,13 MISCELLANEOUS,CHIEF FINANCIAL OFFICER,POSTURITE (UK) LTD,444161,170.47,583565114
BEIS,Met Office,2020-07-09,13 MISCELLANEOUS,CHIEF FINANCIAL OFFICER,POSTURITE (UK) LTD,444162,63.23,583565114
BEIS,Met Office,2020-07-09,13 MISCELLANEOUS,CHIEF FINANCIAL OFFICER,POSTURITE (UK) LTD,444163,170.47,583565114
BEIS,Met Office,2020-07-09,08 SOFTWARE LICENCES,TECHNOLOGY,PRESENTATION CARTOGRAPHY LTD,443933,7775,-
BEIS,Met Office,2020-07-09,08 SOFTWARE LICENCES,TECHNOLOGY,PRESENTATION CARTOGRAPHY LTD,443933,1875,-
BEIS,Met Office,2020-07-09,08 SOFTWARE LICENCES,GOVERNMENT SERVICES,PRESENTATION CARTOGRAPHY LTD,443934,1083.35,-
BEIS,Met Office,2020-07-09,04 CONTRACTORS,TECHNOLOGY,QUALSERV CONSULTING LTD,444045,9772.65,719067718
BEIS,Met Office,2020-07-09,04 CONTRACTORS,TECHNOLOGY,QUALSERV CONSULTING LTD,444079,5074.5,719067718
BEIS,Met Office,2020-07-09,04 CONTRACTORS,TECHNOLOGY,QUALSERV CONSULTING LTD,444086,7000,719067718
BEIS,Met Office,2020-07-09,04 CONTRACTORS,STRATEGIC INVESTMENT,QUALSERV CONSULTING LTD,444087,9000,719067718
BEIS,Met Office,2020-07-09,04 CONTRACTORS,STRATEGIC INVESTMENT,QUALSERV CONSULTING LTD,444145,6974.4,719067718
BEIS,Met Office,2020-07-09,04 CONTRACTORS,OPERATIONS,QUALSERV CONSULTING LTD,444174,5708.88,719067718
BEIS,Met Office,2020-07-09,04 CONTRACTORS,OPERATIONS,QUALSERV CONSULTING LTD,444174,634.32,719067718
BEIS,Met Office,2020-07-09,04 CONTRACTORS,STRATEGIC INVESTMENT,QUALSERV CONSULTING LTD,444175,9000,719067718
BEIS,Met Office,2020-07-09,04 CONTRACTORS,CORPORATE,QUINTON DAVIES LIMITED,444171,19360,291532892
BEIS,Met Office,2020-07-09,07 EQUIPMENT,OPERATIONS,R S Aqua Ltd,444114,2809,370059760
BEIS,Met Office,2020-07-09,07 EQUIPMENT,OPERATIONS,R S Aqua Ltd,444114,2809,370059760
BEIS,Met Office,2020-07-09,06 ACCOMMODATION,CHIEF FINANCIAL OFFICER,REDACTED PERSONAL DATA,442414,100,655585009
BEIS,Met Office,2020-07-09,06 ACCOMMODATION,CHIEF FINANCIAL OFFICER,REDACTED PERSONAL DATA,442414,100,655585009
BEIS,Met Office,2020-07-09,06 ACCOMMODATION,CHIEF FINANCIAL OFFICER,REDACTED PERSONAL DATA,442414,100,655585009
BEIS,Met Office,2020-07-09,06 ACCOMMODATION,CHIEF FINANCIAL OFFICER,REDACTED PERSONAL DATA,442414,100,655585009
BEIS,Met Office,2020-07-09,06 ACCOMMODATION,CHIEF FINANCIAL OFFICER,REDACTED PERSONAL DATA,442414,100,655585009
BEIS,Met Office,2020-07-09,06 ACCOMMODATION,CHIEF FINANCIAL OFFICER,REDACTED PERSONAL DATA,442414,100,655585009
BEIS,Met Office,2020-07-09,06 ACCOMMODATION,CHIEF FINANCIAL OFFICER,REDACTED PERSONAL DATA,442414,21,655585009
BEIS,Met Office,2020-07-09,06 ACCOMMODATION,CHIEF FINANCIAL OFFICER,REDACTED PERSONAL DATA,442414,100,655585009
BEIS,Met Office,2020-07-09,06 ACCOMMODATION,CHIEF FINANCIAL OFFICER,REDACTED PERSONAL DATA,443403,200,655585009
BEIS,Met Office,2020-07-09,06 ACCOMMODATION,CHIEF FINANCIAL OFFICER,REDACTED PERSONAL DATA,443403,200,655585009
BEIS,Met Office,2020-07-09,06 ACCOMMODATION,CHIEF FINANCIAL OFFICER,REDACTED PERSONAL DATA,443403,200,655585009
BEIS,Met Office,2020-07-09,06 ACCOMMODATION,CHIEF FINANCIAL OFFICER,REDACTED PERSONAL DATA,443403,200,655585009
BEIS,Met Office,2020-07-09,06 ACCOMMODATION,CHIEF FINANCIAL OFFICER,REDACTED PERSONAL DATA,443403,42,655585009
BEIS,Met Office,2020-07-09,06 ACCOMMODATION,CHIEF FINANCIAL OFFICER,REDACTED PERSONAL DATA,443403,200,655585009
BEIS,Met Office,2020-07-09,06 ACCOMMODATION,CHIEF FINANCIAL OFFICER,REDACTED PERSONAL DATA,443403,200,655585009
BEIS,Met Office,2020-07-09,06 ACCOMMODATION,CHIEF FINANCIAL OFFICER,REDACTED PERSONAL DATA,443403,200,655585009
BEIS,Met Office,2020-07-09,11 SERVICES,GOVERNMENT SERVICES,REDACTED PERSONAL DATA,443795,20000,N/A
BEIS,Met Office,2020-07-09,06 ACCOMMODATION,CHIEF FINANCIAL OFFICER,REDACTED PERSONAL DATA,444068,160,655585009
BEIS,Met Office,2020-07-09,06 ACCOMMODATION,CHIEF FINANCIAL OFFICER,REDACTED PERSONAL DATA,444068,198,655585009
BEIS,Met Office,2020-07-09,06 ACCOMMODATION,CHIEF FINANCIAL OFFICER,REDACTED PERSONAL DATA,444068,178,655585009
BEIS,Met Office,2020-07-09,06 ACCOMMODATION,CHIEF FINANCIAL OFFICER,REDACTED PERSONAL DATA,444068,146,655585009
BEIS,Met Office,2020-07-09,06 ACCOMMODATION,CHIEF FINANCIAL OFFICER,REDACTED PERSONAL DATA,444068,83,655585009
BEIS,Met Office,2020-07-09,06 ACCOMMODATION,CHIEF FINANCIAL OFFICER,REDACTED PERSONAL DATA,444068,126,655585009
BEIS,Met Office,2020-07-09,06 ACCOMMODATION,CHIEF FINANCIAL OFFICER,REDACTED PERSONAL DATA,444068,164,655585009
BEIS,Met Office,2020-07-09,06 ACCOMMODATION,CHIEF FINANCIAL OFFICER,REDACTED PERSONAL DATA,444068,136,655585009
BEIS,Met Office,2020-07-09,06 ACCOMMODATION,CHIEF FINANCIAL OFFICER,REDACTED PERSONAL DATA,444068,168,655585009
BEIS,Met Office,2020-07-09,06 ACCOMMODATION,CHIEF FINANCIAL OFFICER,REDACTED PERSONAL DATA,444146,200,N/A
BEIS,Met Office,2020-07-09,06 ACCOMMODATION,CHIEF FINANCIAL OFFICER,REDACTED PERSONAL DATA,444187,751,426523462
BEIS,Met Office,2020-07-09,06 ACCOMMODATION,CHIEF FINANCIAL OFFICER,REDACTED PERSONAL DATA,444204,444,300411928
BEIS,Met Office,2020-07-09,11 SERVICES,GOVERNMENT SERVICES,RESURGENCE URBAN RESILIENCE TRUST,444281,25245,259524184
BEIS,Met Office,2020-07-09,11 SERVICES,CHIEF FINANCIAL OFFICER,Reuters Ltd,444178,1785,397000555
BEIS,Met Office,2020-07-09,11 SERVICES,OPERATIONS,ROCKSURE SYSTEMS LTD,444212,1728,859951462
BEIS,Met Office,2020-07-09,11 SERVICES,GOVERNMENT SERVICES,ROWE IT LTD,444214,8846.25,924964394
BEIS,Met Office,2020-07-09,04 CONTRACTORS,STRATEGIC INVESTMENT,ROWE IT LTD,444215,1500,924964394
BEIS,Met Office,2020-07-09,11 SERVICES,STRATEGIC INVESTMENT,ROWE IT LTD,444216,15000,924964394
BEIS,Met Office,2020-07-09,11 SERVICES,OPERATIONS,ROWE IT LTD,444218,52447.5,924964394
BEIS,Met Office,2020-07-09,11 SERVICES,STRATEGIC INVESTMENT,ROWE IT LTD,444219,95575,924964394
BEIS,Met Office,2020-07-09,11 SERVICES,OPERATIONS,ROWE IT LTD,444220,36883.75,924964394
BEIS,Met Office,2020-07-09,11 SERVICES,OPERATIONS,ROWE IT LTD,444221,27963.75,924964394
BEIS,Met Office,2020-07-09,11 SERVICES,GOVERNMENT SERVICES,ROWE IT LTD,444222,1890,924964394
BEIS,Met Office,2020-07-09,11 SERVICES,GOVERNMENT SERVICES,SCIENCE & TECHNOLOGY FACILITIES COUNCIL,428825,20000,618367325
BEIS,Met Office,2020-07-09,06 ACCOMMODATION,CHIEF FINANCIAL OFFICER,SIGNS EXPRESS (EXETER),444037,244.5,631397439
BEIS,Met Office,2020-07-09,11 SERVICES,STRATEGIC INVESTMENT,SOFTCAT LTD,444051,168,491848503
BEIS,Met Office,2020-07-09,08 SOFTWARE LICENCES,TECHNOLOGY,SOFTWARE BOX LIMITED,444084,132,734245248
BEIS,Met Office,2020-07-09,08 SOFTWARE LICENCES,TECHNOLOGY,SOFTWARE BOX LIMITED,444084,352,734245248
BEIS,Met Office,2020-07-09,08 SOFTWARE LICENCES,TECHNOLOGY,SOFTWARE BOX LIMITED,444285,96703.97,734245248
BEIS,Met Office,2020-07-09,11 SERVICES,OPERATIONS,SOFTWIRE TECHNOLOGY LIMITED,444172,2520,752 1253 57
BEIS,Met Office,2020-07-09,04 CONTRACTORS,OPERATIONS,SOLOS CONSULTANTS LTD,444278,8490.06,812035476
BEIS,Met Office,2020-07-09,04 CONTRACTORS,STRATEGIC INVESTMENT,SOLOS CONSULTANTS LTD,444279,15912,812035476
BEIS,Met Office,2020-07-09,07 EQUIPMENT,TECHNOLOGY,SSE CONTRACTING LTD,444099,157.29,570118464
BEIS,Met Office,2020-07-09,11 SERVICES,TECHNOLOGY,SSE CONTRACTING LTD,444104,10137.45,570118464
BEIS,Met Office,2020-07-09,06 ACCOMMODATION,CHIEF FINANCIAL OFFICER,Stirling Council,443971,612.54,663873401
BEIS,Met Office,2020-07-09,06 ACCOMMODATION,CHIEF FINANCIAL OFFICER,Stirling Council,443972,477.78,663873401
BEIS,Met Office,2020-07-09,11 SERVICES,CORPORATE,SWANTECH LOGISTICS LTD,443932,2605,769332401
BEIS,Met Office,2020-07-09,11 SERVICES,TECHNOLOGY,UKCLOUD LTD,444135,1593.87,172647982
BEIS,Met Office,2020-07-09,11 SERVICES,GOVERNMENT SERVICES,ULTRA ELECTRONICS LTD NUCLEAR CONTROL SYSTEMS,443987,7506.27,123340754
BEIS,Met Office,2020-07-09,11 SERVICES,GOVERNMENT SERVICES,ULTRA ELECTRONICS LTD NUCLEAR CONTROL SYSTEMS,443988,9575.47,123340754
BEIS,Met Office,2020-07-09,06 ACCOMMODATION,CHIEF FINANCIAL OFFICER,UNDER ONE ROOF (EAST ANGLIA) LIMITED,444049,230,157127804
BEIS,Met Office,2020-07-09,11 SERVICES,GOVERNMENT SERVICES,UNIVERSITY OF EXETER,444107,8480,142047795
BEIS,Met Office,2020-07-09,11 SERVICES,GOVERNMENT SERVICES,UNIVERSITY OF EXETER,444107,16520,142047795
BEIS,Met Office,2020-07-09,11 SERVICES,SCIENCE,University Of Leeds,444280,125000,613451470
BEIS,Met Office,2020-07-09,11 SERVICES,GOVERNMENT SERVICES,University Of Reading,430378,28770.21,200012659
BEIS,Met Office,2020-07-09,11 SERVICES,GOVERNMENT SERVICES,University Of Reading,436564,43503.98,200012659
BEIS,Met Office,2020-07-09,11 SERVICES,GOVERNMENT SERVICES,University Of Reading,437910,59479.41,200012659
BEIS,Met Office,2020-07-09,11 SERVICES,GOVERNMENT SERVICES,University Of Reading,440800,69911.8,200012659
BEIS,Met Office,2020-07-09,11 SERVICES,GOVERNMENT SERVICES,University Of Reading,440820,43503.98,200012659
BEIS,Met Office,2020-07-09,11 SERVICES,SCIENCE,University Of Reading,441010,21934.19,200012659
BEIS,Met Office,2020-07-09,13 MISCELLANEOUS,SCIENCE,University Of Reading,444031,3.21,200012659
BEIS,Met Office,2020-07-09,11 SERVICES,BUSINESS GROUP,VAISALA LTD,444144,5540,336100011
BEIS,Met Office,2020-07-09,04 CONTRACTORS,TECHNOLOGY,WA CONSULTANTS LTD,444058,6750,876328977
BEIS,Met Office,2020-07-09,04 CONTRACTORS,CHIEF FINANCIAL OFFICER,WA CONSULTANTS LTD,444070,360,876328977
BEIS,Met Office,2020-07-09,04 CONTRACTORS,SCIENCE,WA CONSULTANTS LTD,444071,8175,876328977
BEIS,Met Office,2020-07-09,04 CONTRACTORS,CORPORATE,WA CONSULTANTS LTD,444072,8764.2,876328977
BEIS,Met Office,2020-07-09,04 CONTRACTORS,TECHNOLOGY,WA CONSULTANTS LTD,444073,13000,876328977
BEIS,Met Office,2020-07-09,04 CONTRACTORS,TECHNOLOGY,WA CONSULTANTS LTD,444074,10900,876328977
BEIS,Met Office,2020-07-09,04 CONTRACTORS,GOVERNMENT SERVICES,WA CONSULTANTS LTD,444082,2178,876328977
BEIS,Met Office,2020-07-09,04 CONTRACTORS,GOVERNMENT SERVICES,WA CONSULTANTS LTD,444083,906,876328977
BEIS,Met Office,2020-07-09,04 CONTRACTORS,CHIEF FINANCIAL OFFICER,WA CONSULTANTS LTD,444089,6962,876328977
BEIS,Met Office,2020-07-09,04 CONTRACTORS,TECHNOLOGY,WA CONSULTANTS LTD,444100,8175,876328977
BEIS,Met Office,2020-07-09,04 CONTRACTORS,TECHNOLOGY,WA CONSULTANTS LTD,444101,11900,876328977
BEIS,Met Office,2020-07-09,04 CONTRACTORS,TECHNOLOGY,WA CONSULTANTS LTD,444141,11305,876328977
BEIS,Met Office,2020-07-09,04 CONTRACTORS,TECHNOLOGY,WA CONSULTANTS LTD,444235,11100,876328977
BEIS,Met Office,2020-07-09,06 ACCOMMODATION,CHIEF FINANCIAL OFFICER,WALMSLEY RESIDENTIAL LETTINGS LIMITED,443935,63710.58,200012659
BEIS,Met Office,2020-07-09,11 SERVICES,CHIEF FINANCIAL OFFICER,WEBEX COMMUNICATIONS UK LTD,443939,387.74,815974302
BEIS,Met Office,2020-07-09,11 SERVICES,TECHNOLOGY,WIREFAST LTD,444192,1205.91,749536001
BEIS,Met Office,2020-07-09,11 SERVICES,OPERATIONS,WORLDPAY LTD,444203,21.85,991280207
BEIS,Met Office,2020-07-14,06 ACCOMMODATION,CHIEF FINANCIAL OFFICER,THE CLEANING CREW COMPANY,444527,714,343579772
BEIS,Met Office,2020-07-14,06 ACCOMMODATION,CHIEF FINANCIAL OFFICER,THE CLEANING CREW COMPANY,444534,393.6,343579772
BEIS,Met Office,2020-07-15,11 SERVICES,SCIENCE,Bureau Of Meteorology,444461,1547.89,-
BEIS,Met Office,2020-07-15,11 SERVICES,GOVERNMENT SERVICES,IGAD CLIMATE PREDICTION & APPLICATIONS CNTR,444261,1038.17,-
BEIS,Met Office,2020-07-15,11 SERVICES,SCIENCE,METEO-FRANCE AGENCE COMPTABLE SEC D2C,21554,8962.2,FR03180060030
BEIS,Met Office,2020-07-15,11 SERVICES,OPERATIONS,NSSL GLOBAL LTD,9842,56.12,725151948
BEIS,Met Office,2020-07-15,11 SERVICES,OPERATIONS,NSSL GLOBAL LTD,9843,56.12,725151948
BEIS,Met Office,2020-07-15,10 EQUIPMENT MAINTENANCE,OPERATIONS,RAYMETRICS S.A. (GREEK ACCOUNT),21550,8663.16,EL999641589
BEIS,Met Office,2020-07-16,13 MISCELLANEOUS,SCIENCE,AB MULTIMEDIA LTD,444256,7200,849333502
BEIS,Met Office,2020-07-16,11 SERVICES,OPERATIONS,ACAS SOUTH WEST,444038,860,888809938
BEIS,Met Office,2020-07-16,11 SERVICES,GOVERNMENT SERVICES,ACCELERATION EMARKETING,444483,5397.17,848940776
BEIS,Met Office,2020-07-16,11 SERVICES,CHIEF FINANCIAL OFFICER,ADAM PHONES LTD,444501,353.4,538877093
BEIS,Met Office,2020-07-16,11 SERVICES,CHIEF FINANCIAL OFFICER,ANVIL MOBILE LIMITED,444519,82.6,981686175
BEIS,Met Office,2020-07-16,11 SERVICES,CHIEF FINANCIAL OFFICER,ANVIL MOBILE LIMITED,444519,29.58,981686175
BEIS,Met Office,2020-07-16,11 SERVICES,CHIEF FINANCIAL OFFICER,ANVIL MOBILE LIMITED,444519,98.6,981686175
BEIS,Met Office,2020-07-16,11 SERVICES,CHIEF FINANCIAL OFFICER,ANVIL MOBILE LIMITED,444519,22.6,981686175
BEIS,Met Office,2020-07-16,11 SERVICES,CHIEF FINANCIAL OFFICER,ANVIL MOBILE LIMITED,444519,111.3,981686175
BEIS,Met Office,2020-07-16,11 SERVICES,CHIEF FINANCIAL OFFICER,ANVIL MOBILE LIMITED,444519,34.85,981686175
BEIS,Met Office,2020-07-16,11 SERVICES,SUPERCOMPUTING,Arup,444052,4670.88,524461265
BEIS,Met Office,2020-07-16,06 ACCOMMODATION,CHIEF FINANCIAL OFFICER,Belfast International Airport Ltd,444494,238.75,617777601
BEIS,Met Office,2020-07-16,11 SERVICES,GOVERNMENT SERVICES,CAMBRIDGE ENVIRONMENTAL RESEARCH CONSULTANTS,444609,41780,GB424750755
BEIS,Met Office,2020-07-16,INFORMATION TECHNOLOGY,STRATEGIC INVESTMENT,Campbell Scientific Ltd,442305,1269,428453933
BEIS,Met Office,2020-07-16,INFORMATION TECHNOLOGY,STRATEGIC INVESTMENT,Campbell Scientific Ltd,442305,6246,428453933
BEIS,Met Office,2020-07-16,INFORMATION TECHNOLOGY,STRATEGIC INVESTMENT,Campbell Scientific Ltd,442305,5652,428453933
BEIS,Met Office,2020-07-16,07 EQUIPMENT,OPERATIONS,Campbell Scientific Ltd,442305,1242,428453933
BEIS,Met Office,2020-07-16,07 EQUIPMENT,OPERATIONS,Campbell Scientific Ltd,442305,1912,428453933
BEIS,Met Office,2020-07-16,11 SERVICES,STRATEGIC INVESTMENT,Campbell Scientific Ltd,442305,280,428453933
BEIS,Met Office,2020-07-16,INFORMATION TECHNOLOGY,STRATEGIC INVESTMENT,Campbell Scientific Ltd,444310,1316.88,428453933
BEIS,Met Office,2020-07-16,03 STAFF COSTS T&S,OPERATIONS,CARTUS LTD,444540,256.2,768489458
BEIS,Met Office,2020-07-16,03 STAFF COSTS T&S,OPERATIONS,CARTUS LTD,444541,465,768489458
BEIS,Met Office,2020-07-16,03 STAFF COSTS T&S,OPERATIONS,CARTUS LTD,444543,110,768489458
BEIS,Met Office,2020-07-16,06 ACCOMMODATION,CHIEF FINANCIAL OFFICER,CBRE MANAGED SERVICES LTD,444258,141871.1,853936883
BEIS,Met Office,2020-07-16,06 ACCOMMODATION,CHIEF FINANCIAL OFFICER,CBRE MANAGED SERVICES LTD,444259,33686.82,853936883
BEIS,Met Office,2020-07-16,11 SERVICES,GOVERNMENT SERVICES,CENTRO INTERNACIONAL MEJORAMIENTO DE MAIZ Y T,444240,16613,CIM890330FI8
BEIS,Met Office,2020-07-16,11 SERVICES,GOVERNMENT SERVICES,Cgi It Uk Limited,444558,180460.25,232615194
BEIS,Met Office,2020-07-16,03 STAFF COSTS T&S,OPERATIONS,CHARLIE'S TRAVEL LTD,444126,252,783848277
BEIS,Met Office,2020-07-16,03 STAFF COSTS T&S,OPERATIONS,CHARLIE'S TRAVEL LTD,444126,2175,783848277
BEIS,Met Office,2020-07-16,11 SERVICES,TECHNOLOGY,CLOUDREACH EUROPE LIMITED,444321,4000,978187168
BEIS,Met Office,2020-07-16,11 SERVICES,TECHNOLOGY,CLOUDREACH EUROPE LIMITED,444550,7301.7,978187168
BEIS,Met Office,2020-07-16,11 SERVICES,OPERATIONS,CLOUDREACH EUROPE LIMITED,444551,7301.7,978187168
BEIS,Met Office,2020-07-16,11 SERVICES,TECHNOLOGY,CLOUDREACH EUROPE LIMITED,444571,8827.68,978187168
BEIS,Met Office,2020-07-16,11 SERVICES,TECHNOLOGY,CLOUDREACH EUROPE LIMITED,444572,2244.51,978187168
BEIS,Met Office,2020-07-16,06 ACCOMMODATION,CHIEF FINANCIAL OFFICER,CORONA ENERGY LTD,444517,11814.9,577704800
BEIS,Met Office,2020-07-16,06 ACCOMMODATION,CHIEF FINANCIAL OFFICER,CORONA ENERGY LTD,444518,526.9,577704800
BEIS,Met Office,2020-07-16,06 ACCOMMODATION,CHIEF FINANCIAL OFFICER,COUNTRYWIDE GROUNDS MAINTENANCE LTD,442750,180,611731279
BEIS,Met Office,2020-07-16,06 ACCOMMODATION,CHIEF FINANCIAL OFFICER,COUNTRYWIDE GROUNDS MAINTENANCE LTD,442750,182.13,611731279
BEIS,Met Office,2020-07-16,06 ACCOMMODATION,CHIEF FINANCIAL OFFICER,COUNTRYWIDE GROUNDS MAINTENANCE LTD,442750,233.97,611731279
BEIS,Met Office,2020-07-16,06 ACCOMMODATION,CHIEF FINANCIAL OFFICER,COUNTRYWIDE GROUNDS MAINTENANCE LTD,442750,342,611731279
BEIS,Met Office,2020-07-16,06 ACCOMMODATION,CHIEF FINANCIAL OFFICER,COUNTRYWIDE GROUNDS MAINTENANCE LTD,442750,202.5,611731279
BEIS,Met Office,2020-07-16,06 ACCOMMODATION,CHIEF FINANCIAL OFFICER,COUNTRYWIDE GROUNDS MAINTENANCE LTD,442750,206.37,611731279
BEIS,Met Office,2020-07-16,06 ACCOMMODATION,CHIEF FINANCIAL OFFICER,COUNTRYWIDE GROUNDS MAINTENANCE LTD,442750,200.85,611731279
BEIS,Met Office,2020-07-16,06 ACCOMMODATION,CHIEF FINANCIAL OFFICER,COUNTRYWIDE GROUNDS MAINTENANCE LTD,442750,282,611731279
BEIS,Met Office,2020-07-16,06 ACCOMMODATION,CHIEF FINANCIAL OFFICER,COUNTRYWIDE GROUNDS MAINTENANCE LTD,442750,450,611731279
BEIS,Met Office,2020-07-16,06 ACCOMMODATION,CHIEF FINANCIAL OFFICER,COUNTRYWIDE GROUNDS MAINTENANCE LTD,442750,465,611731279
BEIS,Met Office,2020-07-16,06 ACCOMMODATION,CHIEF FINANCIAL OFFICER,COUNTRYWIDE GROUNDS MAINTENANCE LTD,442750,360,611731279
BEIS,Met Office,2020-07-16,06 ACCOMMODATION,CHIEF FINANCIAL OFFICER,COUNTRYWIDE GROUNDS MAINTENANCE LTD,442750,238.38,611731279
BEIS,Met Office,2020-07-16,06 ACCOMMODATION,CHIEF FINANCIAL OFFICER,COUNTRYWIDE GROUNDS MAINTENANCE LTD,442750,196.44,611731279
BEIS,Met Office,2020-07-16,06 ACCOMMODATION,CHIEF FINANCIAL OFFICER,COUNTRYWIDE GROUNDS MAINTENANCE LTD,442750,236.25,611731279
BEIS,Met Office,2020-07-16,06 ACCOMMODATION,CHIEF FINANCIAL OFFICER,COUNTRYWIDE GROUNDS MAINTENANCE LTD,442750,294,611731279
BEIS,Met Office,2020-07-16,06 ACCOMMODATION,CHIEF FINANCIAL OFFICER,COUNTRYWIDE GROUNDS MAINTENANCE LTD,442750,142.83,611731279
BEIS,Met Office,2020-07-16,06 ACCOMMODATION,CHIEF FINANCIAL OFFICER,COUNTRYWIDE GROUNDS MAINTENANCE LTD,442750,294,611731279
BEIS,Met Office,2020-07-16,06 ACCOMMODATION,CHIEF FINANCIAL OFFICER,COUNTRYWIDE GROUNDS MAINTENANCE LTD,442750,194.22,611731279
BEIS,Met Office,2020-07-16,06 ACCOMMODATION,CHIEF FINANCIAL OFFICER,COUNTRYWIDE GROUNDS MAINTENANCE LTD,442750,210,611731279
BEIS,Met Office,2020-07-16,06 ACCOMMODATION,CHIEF FINANCIAL OFFICER,COUNTRYWIDE GROUNDS MAINTENANCE LTD,442750,194.22,611731279
BEIS,Met Office,2020-07-16,06 ACCOMMODATION,CHIEF FINANCIAL OFFICER,COUNTRYWIDE GROUNDS MAINTENANCE LTD,442750,384.66,611731279
BEIS,Met Office,2020-07-16,06 ACCOMMODATION,CHIEF FINANCIAL OFFICER,COUNTRYWIDE GROUNDS MAINTENANCE LTD,442750,229.14,611731279
BEIS,Met Office,2020-07-16,06 ACCOMMODATION,CHIEF FINANCIAL OFFICER,COUNTRYWIDE GROUNDS MAINTENANCE LTD,442750,480,611731279
BEIS,Met Office,2020-07-16,06 ACCOMMODATION,CHIEF FINANCIAL OFFICER,COUNTRYWIDE GROUNDS MAINTENANCE LTD,442750,514.47,611731279
BEIS,Met Office,2020-07-16,06 ACCOMMODATION,CHIEF FINANCIAL OFFICER,COUNTRYWIDE GROUNDS MAINTENANCE LTD,443366,61.68,611731279
BEIS,Met Office,2020-07-16,06 ACCOMMODATION,CHIEF FINANCIAL OFFICER,COUNTRYWIDE GROUNDS MAINTENANCE LTD,443366,62.41,611731279
BEIS,Met Office,2020-07-16,06 ACCOMMODATION,CHIEF FINANCIAL OFFICER,COUNTRYWIDE GROUNDS MAINTENANCE LTD,443366,80.17,611731279
BEIS,Met Office,2020-07-16,06 ACCOMMODATION,CHIEF FINANCIAL OFFICER,COUNTRYWIDE GROUNDS MAINTENANCE LTD,443366,117.18,611731279
BEIS,Met Office,2020-07-16,06 ACCOMMODATION,CHIEF FINANCIAL OFFICER,COUNTRYWIDE GROUNDS MAINTENANCE LTD,443366,69.39,611731279
BEIS,Met Office,2020-07-16,06 ACCOMMODATION,CHIEF FINANCIAL OFFICER,COUNTRYWIDE GROUNDS MAINTENANCE LTD,443366,70.71,611731279
BEIS,Met Office,2020-07-16,06 ACCOMMODATION,CHIEF FINANCIAL OFFICER,COUNTRYWIDE GROUNDS MAINTENANCE LTD,443366,68.82,611731279
BEIS,Met Office,2020-07-16,06 ACCOMMODATION,CHIEF FINANCIAL OFFICER,COUNTRYWIDE GROUNDS MAINTENANCE LTD,443366,190.63,611731279
BEIS,Met Office,2020-07-16,06 ACCOMMODATION,CHIEF FINANCIAL OFFICER,COUNTRYWIDE GROUNDS MAINTENANCE LTD,443366,132.17,611731279
BEIS,Met Office,2020-07-16,06 ACCOMMODATION,CHIEF FINANCIAL OFFICER,COUNTRYWIDE GROUNDS MAINTENANCE LTD,443366,88.21,611731279
BEIS,Met Office,2020-07-16,06 ACCOMMODATION,CHIEF FINANCIAL OFFICER,COUNTRYWIDE GROUNDS MAINTENANCE LTD,443366,123.36,611731279
BEIS,Met Office,2020-07-16,06 ACCOMMODATION,CHIEF FINANCIAL OFFICER,COUNTRYWIDE GROUNDS MAINTENANCE LTD,443366,81.68,611731279
BEIS,Met Office,2020-07-16,06 ACCOMMODATION,CHIEF FINANCIAL OFFICER,COUNTRYWIDE GROUNDS MAINTENANCE LTD,443366,67.31,611731279
BEIS,Met Office,2020-07-16,06 ACCOMMODATION,CHIEF FINANCIAL OFFICER,COUNTRYWIDE GROUNDS MAINTENANCE LTD,443366,80.99,611731279
BEIS,Met Office,2020-07-16,06 ACCOMMODATION,CHIEF FINANCIAL OFFICER,COUNTRYWIDE GROUNDS MAINTENANCE LTD,443366,100.74,611731279
BEIS,Met Office,2020-07-16,06 ACCOMMODATION,CHIEF FINANCIAL OFFICER,COUNTRYWIDE GROUNDS MAINTENANCE LTD,443366,48.94,611731279
BEIS,Met Office,2020-07-16,06 ACCOMMODATION,CHIEF FINANCIAL OFFICER,COUNTRYWIDE GROUNDS MAINTENANCE LTD,443366,198.74,611731279
BEIS,Met Office,2020-07-16,06 ACCOMMODATION,CHIEF FINANCIAL OFFICER,COUNTRYWIDE GROUNDS MAINTENANCE LTD,443366,66.56,611731279
BEIS,Met Office,2020-07-16,06 ACCOMMODATION,CHIEF FINANCIAL OFFICER,COUNTRYWIDE GROUNDS MAINTENANCE LTD,443366,71.96,611731279
BEIS,Met Office,2020-07-16,06 ACCOMMODATION,CHIEF FINANCIAL OFFICER,COUNTRYWIDE GROUNDS MAINTENANCE LTD,443366,66.56,611731279
BEIS,Met Office,2020-07-16,06 ACCOMMODATION,CHIEF FINANCIAL OFFICER,COUNTRYWIDE GROUNDS MAINTENANCE LTD,443366,131.81,611731279
BEIS,Met Office,2020-07-16,06 ACCOMMODATION,CHIEF FINANCIAL OFFICER,COUNTRYWIDE GROUNDS MAINTENANCE LTD,443366,78.52,611731279
BEIS,Met Office,2020-07-16,06 ACCOMMODATION,CHIEF FINANCIAL OFFICER,COUNTRYWIDE GROUNDS MAINTENANCE LTD,443366,130,611731279
BEIS,Met Office,2020-07-16,06 ACCOMMODATION,CHIEF FINANCIAL OFFICER,COUNTRYWIDE GROUNDS MAINTENANCE LTD,443366,164.55,611731279
BEIS,Met Office,2020-07-16,06 ACCOMMODATION,CHIEF FINANCIAL OFFICER,COUNTRYWIDE GROUNDS MAINTENANCE LTD,443366,176.29,611731279
BEIS,Met Office,2020-07-16,06 ACCOMMODATION,CHIEF FINANCIAL OFFICER,COUNTRYWIDE GROUNDS MAINTENANCE LTD,444482,228,611731279
BEIS,Met Office,2020-07-16,06 ACCOMMODATION,CHIEF FINANCIAL OFFICER,COUNTRYWIDE GROUNDS MAINTENANCE LTD,444482,133.9,611731279
BEIS,Met Office,2020-07-16,06 ACCOMMODATION,CHIEF FINANCIAL OFFICER,COUNTRYWIDE GROUNDS MAINTENANCE LTD,444482,94,611731279
BEIS,Met Office,2020-07-16,06 ACCOMMODATION,CHIEF FINANCIAL OFFICER,COUNTRYWIDE GROUNDS MAINTENANCE LTD,444482,300,611731279
BEIS,Met Office,2020-07-16,06 ACCOMMODATION,CHIEF FINANCIAL OFFICER,COUNTRYWIDE GROUNDS MAINTENANCE LTD,444482,310,611731279
BEIS,Met Office,2020-07-16,06 ACCOMMODATION,CHIEF FINANCIAL OFFICER,COUNTRYWIDE GROUNDS MAINTENANCE LTD,444482,240,611731279
BEIS,Met Office,2020-07-16,06 ACCOMMODATION,CHIEF FINANCIAL OFFICER,COUNTRYWIDE GROUNDS MAINTENANCE LTD,444482,189.72,611731279
BEIS,Met Office,2020-07-16,06 ACCOMMODATION,CHIEF FINANCIAL OFFICER,COUNTRYWIDE GROUNDS MAINTENANCE LTD,444482,78.75,611731279
BEIS,Met Office,2020-07-16,06 ACCOMMODATION,CHIEF FINANCIAL OFFICER,COUNTRYWIDE GROUNDS MAINTENANCE LTD,444482,196,611731279
BEIS,Met Office,2020-07-16,06 ACCOMMODATION,CHIEF FINANCIAL OFFICER,COUNTRYWIDE GROUNDS MAINTENANCE LTD,444482,196,611731279
BEIS,Met Office,2020-07-16,06 ACCOMMODATION,CHIEF FINANCIAL OFFICER,COUNTRYWIDE GROUNDS MAINTENANCE LTD,444482,129.48,611731279
BEIS,Met Office,2020-07-16,06 ACCOMMODATION,CHIEF FINANCIAL OFFICER,COUNTRYWIDE GROUNDS MAINTENANCE LTD,444482,140,611731279
BEIS,Met Office,2020-07-16,06 ACCOMMODATION,CHIEF FINANCIAL OFFICER,COUNTRYWIDE GROUNDS MAINTENANCE LTD,444482,129.48,611731279
BEIS,Met Office,2020-07-16,06 ACCOMMODATION,CHIEF FINANCIAL OFFICER,COUNTRYWIDE GROUNDS MAINTENANCE LTD,444482,256.44,611731279
BEIS,Met Office,2020-07-16,06 ACCOMMODATION,CHIEF FINANCIAL OFFICER,COUNTRYWIDE GROUNDS MAINTENANCE LTD,444482,94,611731279
BEIS,Met Office,2020-07-16,06 ACCOMMODATION,CHIEF FINANCIAL OFFICER,COUNTRYWIDE GROUNDS MAINTENANCE LTD,444482,520,611731279
BEIS,Met Office,2020-07-16,06 ACCOMMODATION,CHIEF FINANCIAL OFFICER,COUNTRYWIDE GROUNDS MAINTENANCE LTD,444482,320,611731279
BEIS,Met Office,2020-07-16,06 ACCOMMODATION,CHIEF FINANCIAL OFFICER,COUNTRYWIDE GROUNDS MAINTENANCE LTD,444482,342.98,611731279
BEIS,Met Office,2020-07-16,11 SERVICES,CHIEF FINANCIAL OFFICER,DBS FINANCE RECEIPTS CTS,444282,178.66,888805068
BEIS,Met Office,2020-07-16,11 SERVICES,CHIEF FINANCIAL OFFICER,DBS FINANCE RECEIPTS CTS,444283,178.66,888805068
BEIS,Met Office,2020-07-16,11 SERVICES,CHIEF FINANCIAL OFFICER,DBS FINANCE RECEIPTS CTS,444284,178.66,888805068
BEIS,Met Office,2020-07-16,11 SERVICES,CHIEF FINANCIAL OFFICER,DBS FINANCE RECEIPTS CTS,444488,178.68,888805068
BEIS,Met Office,2020-07-16,11 SERVICES,CHIEF FINANCIAL OFFICER,DBS FINANCE RECEIPTS CTS,444489,174.67,888805068
BEIS,Met Office,2020-07-16,06 ACCOMMODATION,CHIEF FINANCIAL OFFICER,DIAMOND FACILITIES SUPPORT LIMITED,444577,100,984488161
BEIS,Met Office,2020-07-16,11 SERVICES,CORPORATE,ECA INTERNATIONAL,444548,7899,238549825
BEIS,Met Office,2020-07-16,13 MISCELLANEOUS,CHIEF FINANCIAL OFFICER,EDEN SPRINGS UK LTD,444260,398.07,232160411
BEIS,Met Office,2020-07-16,03 STAFF COSTS T&S,CHIEF FINANCIAL OFFICER,ENTERPRISE RENT A CAR UK LTD,444556,283.25,215557314
BEIS,Met Office,2020-07-16,11 SERVICES,CORPORATE,EQUINITI ICS LTD,444573,20,915967778
BEIS,Met Office,2020-07-16,10 EQUIPMENT MAINTENANCE,OPERATIONS,EQUINOX INSTRUMENTS LTD,443639,456,865954274
BEIS,Met Office,2020-07-16,10 EQUIPMENT MAINTENANCE,OPERATIONS,EQUINOX INSTRUMENTS LTD,443639,4275,865954274
BEIS,Met Office,2020-07-16,11 SERVICES,OPERATIONS,EQUINOX INSTRUMENTS LTD,443639,150,865954274
BEIS,Met Office,2020-07-16,11 SERVICES,CHIEF FINANCIAL OFFICER,EXPONENTIAL-E,444499,3767.25,GB798572653
BEIS,Met Office,2020-07-16,03 STAFF COSTS T&S,OPERATIONS,FALKLAND ISLAND COMPANY LTD,444536,700,N/A
BEIS,Met Office,2020-07-16,03 STAFF COSTS T&S,OPERATIONS,FALKLAND ISLAND COMPANY LTD,444537,700,N/A
BEIS,Met Office,2020-07-16,03 STAFF COSTS T&S,OPERATIONS,FALKLAND ISLAND COMPANY LTD,444538,700,N/A
BEIS,Met Office,2020-07-16,03 STAFF COSTS T&S,OPERATIONS,FALKLAND ISLAND COMPANY LTD,444539,700,N/A
BEIS,Met Office,2020-07-16,11 SERVICES,CHIEF FINANCIAL OFFICER,GAMMA BUSINESS COMMUNICATIONS LTD,444460,362.44,823820344
BEIS,Met Office,2020-07-16,07 EQUIPMENT,OPERATIONS,GAMMA TELECOM LTD,444340,2943.3,823820344
BEIS,Met Office,2020-07-16,04 CONTRACTORS,TECHNOLOGY,GCS IT RECRUITMENT SPECIALISTS LTD,444545,1820,896156575
BEIS,Met Office,2020-07-16,04 CONTRACTORS,TECHNOLOGY,GCS IT RECRUITMENT SPECIALISTS LTD,444546,16500,896156575
BEIS,Met Office,2020-07-16,04 CONTRACTORS,TECHNOLOGY,GCS IT RECRUITMENT SPECIALISTS LTD,444547,8645,896156575
BEIS,Met Office,2020-07-16,11 SERVICES,CHIEF FINANCIAL OFFICER,GIBRALTAR NYNEX COMMUNICATIONS LTD,444217,694,NOVAT
BEIS,Met Office,2020-07-16,04 CONTRACTORS,TECHNOLOGY,HAYS SPECIALIST RECRUITMENT LTD,444484,577.58,773695871
BEIS,Met Office,2020-07-16,04 CONTRACTORS,CORPORATE,HAYS SPECIALIST RECRUITMENT LTD,444485,634.67,773695871
BEIS,Met Office,2020-07-16,04 CONTRACTORS,CORPORATE,HAYS SPECIALIST RECRUITMENT LTD,444486,634.67,773695871
BEIS,Met Office,2020-07-16,04 CONTRACTORS,TECHNOLOGY,HAYS SPECIALIST RECRUITMENT LTD,444487,570.03,773695871
BEIS,Met Office,2020-07-16,04 CONTRACTORS,GOVERNMENT SERVICES,HAYS SPECIALIST RECRUITMENT LTD,444523,183.08,773695871
BEIS,Met Office,2020-07-16,04 CONTRACTORS,OPERATIONS,HAYS SPECIALIST RECRUITMENT LTD,444524,366.15,773695871
BEIS,Met Office,2020-07-16,04 CONTRACTORS,STRATEGIC INVESTMENT,HAYS SPECIALIST RECRUITMENT LTD,444525,558.7,773695871
BEIS,Met Office,2020-07-16,04 CONTRACTORS,TECHNOLOGY,HAYS SPECIALIST RECRUITMENT LTD,444526,249.15,773695871
BEIS,Met Office,2020-07-16,04 CONTRACTORS,CORPORATE,HAYS SPECIALIST RECRUITMENT LTD,444528,634.67,773695871
BEIS,Met Office,2020-07-16,04 CONTRACTORS,BUSINESS GROUP,HAYS SPECIALIST RECRUITMENT LTD,444529,915.4,773695871
BEIS,Met Office,2020-07-16,04 CONTRACTORS,BUSINESS GROUP,HAYS SPECIALIST RECRUITMENT LTD,444530,837.28,773695871
BEIS,Met Office,2020-07-16,04 CONTRACTORS,TECHNOLOGY,HAYS SPECIALIST RECRUITMENT LTD,444555,577.59,773695871
BEIS,Met Office,2020-07-16,06 ACCOMMODATION,CHIEF FINANCIAL OFFICER,HIGHLANDS & ISLANDS AIRPORTS LTD.,444349,200,945667772
BEIS,Met Office,2020-07-16,11 SERVICES,SUPERCOMPUTING,HOGAN LOVELLS INTERNATIONAL LLP,443326,6532.48,GB123371543
BEIS,Met Office,2020-07-16,11 SERVICES,SUPERCOMPUTING,HOGAN LOVELLS INTERNATIONAL LLP,443327,3207.55,GB123371543
BEIS,Met Office,2020-07-16,11 SERVICES,SUPERCOMPUTING,HOGAN LOVELLS INTERNATIONAL LLP,443340,26162,GB123371543
BEIS,Met Office,2020-07-16,11 SERVICES,SUPERCOMPUTING,HOGAN LOVELLS INTERNATIONAL LLP,443344,-26258.11,GB123371543
BEIS,Met Office,2020-07-16,11 SERVICES,SUPERCOMPUTING,HOGAN LOVELLS INTERNATIONAL LLP,443345,-39660.81,GB123371543
BEIS,Met Office,2020-07-16,11 SERVICES,SUPERCOMPUTING,HOGAN LOVELLS INTERNATIONAL LLP,443346,-9530.21,GB123371543
BEIS,Met Office,2020-07-16,11 SERVICES,SUPERCOMPUTING,HOGAN LOVELLS INTERNATIONAL LLP,443347,-13785.18,GB123371543
BEIS,Met Office,2020-07-16,11 SERVICES,SUPERCOMPUTING,HOGAN LOVELLS INTERNATIONAL LLP,443347,-42000,GB123371543
BEIS,Met Office,2020-07-16,11 SERVICES,SUPERCOMPUTING,HOGAN LOVELLS INTERNATIONAL LLP,443348,-81193.6,GB123371543
BEIS,Met Office,2020-07-16,11 SERVICES,SUPERCOMPUTING,HOGAN LOVELLS INTERNATIONAL LLP,444094,15383.7,GB123371543
BEIS,Met Office,2020-07-16,11 SERVICES,SUPERCOMPUTING,HOGAN LOVELLS INTERNATIONAL LLP,444095,13896.58,GB123371543
BEIS,Met Office,2020-07-16,11 SERVICES,SUPERCOMPUTING,HOGAN LOVELLS INTERNATIONAL LLP,444096,3865.5,GB123371543
BEIS,Met Office,2020-07-16,11 SERVICES,SUPERCOMPUTING,HOGAN LOVELLS INTERNATIONAL LLP,444097,18107.5,GB123371543
BEIS,Met Office,2020-07-16,11 SERVICES,SUPERCOMPUTING,HOGAN LOVELLS INTERNATIONAL LLP,444097,7185.99,GB123371543
BEIS,Met Office,2020-07-16,11 SERVICES,SUPERCOMPUTING,HOGAN LOVELLS INTERNATIONAL LLP,444097,9529.24,GB123371543
BEIS,Met Office,2020-07-16,11 SERVICES,SUPERCOMPUTING,HOGAN LOVELLS INTERNATIONAL LLP,444097,15586.52,GB123371543
BEIS,Met Office,2020-07-16,11 SERVICES,SUPERCOMPUTING,HOGAN LOVELLS INTERNATIONAL LLP,444097,35672.67,GB123371543
BEIS,Met Office,2020-07-16,11 SERVICES,SUPERCOMPUTING,HOGAN LOVELLS INTERNATIONAL LLP,444097,20514,GB123371543
BEIS,Met Office,2020-07-16,11 SERVICES,SUPERCOMPUTING,HOGAN LOVELLS INTERNATIONAL LLP,444098,3386,GB123371543
BEIS,Met Office,2020-07-16,11 SERVICES,SUPERCOMPUTING,HOGAN LOVELLS INTERNATIONAL LLP,444103,5913.5,GB123371543
BEIS,Met Office,2020-07-16,11 SERVICES,SUPERCOMPUTING,HOGAN LOVELLS INTERNATIONAL LLP,444490,42494,GB123371543
BEIS,Met Office,2020-07-16,06 ACCOMMODATION,OPERATIONS,INMARSAT SOLUTIONS (CANADA) INC,444166,799.42,766144223
BEIS,Met Office,2020-07-16,11 SERVICES,CHIEF FINANCIAL OFFICER,INTEROUTE COMMUNICATIONS LIMITED,444639,4931.94,832 7071 39
BEIS,Met Office,2020-07-16,04 CONTRACTORS,OPERATIONS,JOBSEEKERS RECRUITMENT SERVICES LTD,444322,259.93,130 1297 14
BEIS,Met Office,2020-07-16,04 CONTRACTORS,OPERATIONS,JOBSEEKERS RECRUITMENT SERVICES LTD,444323,317.27,130 1297 14
BEIS,Met Office,2020-07-16,04 CONTRACTORS,GOVERNMENT SERVICES,JOBSEEKERS RECRUITMENT SERVICES LTD,444331,403.65,130 1297 14
BEIS,Met Office,2020-07-16,04 CONTRACTORS,GOVERNMENT SERVICES,JOBSEEKERS RECRUITMENT SERVICES LTD,444332,663.78,130 1297 14
BEIS,Met Office,2020-07-16,04 CONTRACTORS,GOVERNMENT SERVICES,JOBSEEKERS RECRUITMENT SERVICES LTD,444333,663.78,130 1297 14
BEIS,Met Office,2020-07-16,04 CONTRACTORS,GOVERNMENT SERVICES,JOBSEEKERS RECRUITMENT SERVICES LTD,444334,676.14,130 1297 14
BEIS,Met Office,2020-07-16,04 CONTRACTORS,GOVERNMENT SERVICES,JOBSEEKERS RECRUITMENT SERVICES LTD,444335,939.72,130 1297 14
BEIS,Met Office,2020-07-16,04 CONTRACTORS,GOVERNMENT SERVICES,JOBSEEKERS RECRUITMENT SERVICES LTD,444336,928.96,130 1297 14
BEIS,Met Office,2020-07-16,04 CONTRACTORS,GOVERNMENT SERVICES,JOBSEEKERS RECRUITMENT SERVICES LTD,444561,663.78,130 1297 14
BEIS,Met Office,2020-07-16,04 CONTRACTORS,GOVERNMENT SERVICES,JOBSEEKERS RECRUITMENT SERVICES LTD,444562,1026.01,130 1297 14
BEIS,Met Office,2020-07-16,04 CONTRACTORS,GOVERNMENT SERVICES,JOBSEEKERS RECRUITMENT SERVICES LTD,444563,870.96,130 1297 14
BEIS,Met Office,2020-07-16,04 CONTRACTORS,GOVERNMENT SERVICES,JOBSEEKERS RECRUITMENT SERVICES LTD,444564,663.78,130 1297 14
BEIS,Met Office,2020-07-16,04 CONTRACTORS,GOVERNMENT SERVICES,JOBSEEKERS RECRUITMENT SERVICES LTD,444565,504.24,130 1297 14
BEIS,Met Office,2020-07-16,04 CONTRACTORS,GOVERNMENT SERVICES,JOBSEEKERS RECRUITMENT SERVICES LTD,444566,403.65,130 1297 14
BEIS,Met Office,2020-07-16,06 ACCOMMODATION,CHIEF FINANCIAL OFFICER,JR FLAT ROOFING,444544,980,-
BEIS,Met Office,2020-07-16,11 SERVICES,CHIEF FINANCIAL OFFICER,MANX TELECOM LTD,444303,53.21,003291912
BEIS,Met Office,2020-07-16,11 SERVICES,CHIEF FINANCIAL OFFICER,MANX TELECOM LTD,444304,53.21,003291912
BEIS,Met Office,2020-07-16,11 SERVICES,CHIEF FINANCIAL OFFICER,MANX TELECOM LTD,444305,53.21,003291912
BEIS,Met Office,2020-07-16,11 SERVICES,CORPORATE,MERKLE UK THREE LTD T/A MERKLE PERISCOPIX,444295,8213.33,843316243
BEIS,Met Office,2020-07-16,11 SERVICES,CHIEF FINANCIAL OFFICER,MITIE SECURITY LTD,443942,10263.36,416706654
BEIS,Met Office,2020-07-16,11 SERVICES,CHIEF FINANCIAL OFFICER,MITIE SECURITY LTD,443943,20526.35,416706654
BEIS,Met Office,2020-07-16,11 SERVICES,CHIEF FINANCIAL OFFICER,MITIE SECURITY LTD,444182,1311.72,416706654
BEIS,Met Office,2020-07-16,11 SERVICES,CHIEF FINANCIAL OFFICER,MITIE SECURITY LTD,444183,693.5,416706654
BEIS,Met Office,2020-07-16,11 SERVICES,CORPORATE,NIMMER,444236,3672,-
BEIS,Met Office,2020-07-16,06 ACCOMMODATION,CHIEF FINANCIAL OFFICER,Northern Ireland Water,444496,5200,898746537
BEIS,Met Office,2020-07-16,PLANT AND EQUIPMENT,CHIEF FINANCIAL OFFICER,OCMIS LTD,444309,54275,406 7922 45
BEIS,Met Office,2020-07-16,10 EQUIPMENT MAINTENANCE,OPERATIONS,OVARRO TS LTD,444559,17095,648280518
BEIS,Met Office,2020-07-16,06 ACCOMMODATION,CHIEF FINANCIAL OFFICER,POD POINT,444324,2820,278743455
BEIS,Met Office,2020-07-16,06 ACCOMMODATION,CHIEF FINANCIAL OFFICER,POD POINT,444326,-700,278743455
BEIS,Met Office,2020-07-16,13 MISCELLANEOUS,CHIEF FINANCIAL OFFICER,POSTURITE (UK) LTD,444299,21.67,583565114
BEIS,Met Office,2020-07-16,04 CONTRACTORS,TECHNOLOGY,QUALSERV CONSULTING LTD,444347,8714.7,719067718
BEIS,Met Office,2020-07-16,04 CONTRACTORS,TECHNOLOGY,QUALSERV CONSULTING LTD,444533,9771.8,719067718
BEIS,Met Office,2020-07-16,04 CONTRACTORS,CORPORATE,QUINTON DAVIES LIMITED,444520,15730,291532892
BEIS,Met Office,2020-07-16,10 EQUIPMENT MAINTENANCE,OPERATIONS,RAISE TELECOMS LTD,444567,15275,166016521
BEIS,Met Office,2020-07-16,06 ACCOMMODATION,CHIEF FINANCIAL OFFICER,REDACTED PERSONAL DATA,444291,3754,001874305
BEIS,Met Office,2020-07-16,06 ACCOMMODATION,CHIEF FINANCIAL OFFICER,REDACTED PERSONAL DATA,444300,95,899936427
BEIS,Met Office,2020-07-16,06 ACCOMMODATION,CHIEF FINANCIAL OFFICER,REDACTED PERSONAL DATA,444301,950,899936427
BEIS,Met Office,2020-07-16,06 ACCOMMODATION,CHIEF FINANCIAL OFFICER,REGAN BUILDERS,439632,2388.18,993684946
BEIS,Met Office,2020-07-16,06 ACCOMMODATION,CHIEF FINANCIAL OFFICER,RIVER RIDGE,444495,108.98,176286083
BEIS,Met Office,2020-07-16,11 SERVICES,GOVERNMENT SERVICES,ROWE IT LTD,444213,4798.75,924964394
BEIS,Met Office,2020-07-16,06 ACCOMMODATION,CHIEF FINANCIAL OFFICER,SAFESTORE LTD,444569,2681.21,722887607
BEIS,Met Office,2020-07-16,06 ACCOMMODATION,CHIEF FINANCIAL OFFICER,Scottish Government,444535,31440.85,888842551
BEIS,Met Office,2020-07-16,11 SERVICES,CHIEF FINANCIAL OFFICER,Siemens Plc,444290,20.7,GB 927 317 516
BEIS,Met Office,2020-07-16,08 SOFTWARE LICENCES,OPERATIONS,SOFTCAT LTD,444293,26025,491848503
BEIS,Met Office,2020-07-16,06 ACCOMMODATION,CHIEF FINANCIAL OFFICER,SOUTH WEST WATER LTD,444462,9982.18,236873674
BEIS,Met Office,2020-07-16,11 SERVICES,BUSINESS GROUP,SPOKE (INTERACTIVE) LTD,444493,700,840156451
BEIS,Met Office,2020-07-16,06 ACCOMMODATION,CHIEF FINANCIAL OFFICER,SSE TELECOMS,444638,2400,553769603
BEIS,Met Office,2020-07-16,PLANT AND EQUIPMENT,CHIEF FINANCIAL OFFICER,Stewart Morris Partnership Ltd,444549,517.5,687720886
BEIS,Met Office,2020-07-16,11 SERVICES,CHIEF FINANCIAL OFFICER,SURE SOUTH ATLANTIC LTD,444497,4743,-
BEIS,Met Office,2020-07-16,11 SERVICES,CHIEF FINANCIAL OFFICER,SURE SOUTH ATLANTIC LTD,444498,591.15,-
BEIS,Met Office,2020-07-16,11 SERVICES,CHIEF FINANCIAL OFFICER,SURE SOUTH ATLANTIC LTD (ST HELENA),444554,553.77,30005
BEIS,Met Office,2020-07-16,11 SERVICES,TECHNOLOGY,SYNTHESYS SYSTEMS ENGINEERS LTD,444568,1625.4,499309492
BEIS,Met Office,2020-07-16,11 SERVICES,CHIEF FINANCIAL OFFICER,TELEFONICA O2 UK LIMITED,444492,8259.47,778603785
BEIS,Met Office,2020-07-16,06 ACCOMMODATION,CHIEF FINANCIAL OFFICER,TENNIE FACILITIES PROPERTY MANAGEMENT LTD,444265,186.43,982055803
BEIS,Met Office,2020-07-16,11 SERVICES,SCIENCE,UNIVERSITY OF EXETER,444354,18500,142047795
BEIS,Met Office,2020-07-16,04 CONTRACTORS,TECHNOLOGY,WA CONSULTANTS LTD,444328,9750,876328977
BEIS,Met Office,2020-07-16,04 CONTRACTORS,TECHNOLOGY,WA CONSULTANTS LTD,444337,7000,876328977
BEIS,Met Office,2020-07-16,04 CONTRACTORS,CHIEF FINANCIAL OFFICER,WA CONSULTANTS LTD,444338,8265,876328977
BEIS,Met Office,2020-07-16,04 CONTRACTORS,TECHNOLOGY,WA CONSULTANTS LTD,444459,11847.66,876328977
BEIS,Met Office,2020-07-16,04 CONTRACTORS,TECHNOLOGY,WA CONSULTANTS LTD,444491,13500,876328977
BEIS,Met Office,2020-07-16,04 CONTRACTORS,STRATEGIC INVESTMENT,WA CONSULTANTS LTD,444574,8800,876328977
BEIS,Met Office,2020-07-16,04 CONTRACTORS,STRATEGIC INVESTMENT,WA CONSULTANTS LTD,444575,6778.35,876328977
BEIS,Met Office,2020-07-16,06 ACCOMMODATION,CHIEF FINANCIAL OFFICER,WEST LANCASHIRE BOROUGH COUNCIL,444254,125.98,-
BEIS,Met Office,2020-07-16,11 SERVICES,TECHNOLOGY,WIREFAST LTD,444608,4879.37,749536001
BEIS,Met Office,2020-07-16,11 SERVICES,CHIEF FINANCIAL OFFICER,XUPER,444500,795,316677090
BEIS,Met Office,2020-07-16,11 SERVICES,CHIEF FINANCIAL OFFICER,XUPER,444500,900,316677090
BEIS,Met Office,2020-07-16,11 SERVICES,CHIEF FINANCIAL OFFICER,XUPER,444500,795,316677090
BEIS,Met Office,2020-07-16,11 SERVICES,CHIEF FINANCIAL OFFICER,XUPER,444500,795,316677090
BEIS,Met Office,2020-07-16,11 SERVICES,CHIEF FINANCIAL OFFICER,XUPER,444500,2412.75,316677090
BEIS,Met Office,2020-07-16,11 SERVICES,CHIEF FINANCIAL OFFICER,XUPER,444500,2970,316677090
BEIS,Met Office,2020-07-16,11 SERVICES,CHIEF FINANCIAL OFFICER,XUPER,444500,795,316677090
BEIS,Met Office,2020-07-16,11 SERVICES,CHIEF FINANCIAL OFFICER,XUPER,444500,795,316677090
BEIS,Met Office,2020-07-16,11 SERVICES,CHIEF FINANCIAL OFFICER,XUPER,444500,795,316677090
BEIS,Met Office,2020-07-16,11 SERVICES,CHIEF FINANCIAL OFFICER,XUPER,444500,735,316677090
BEIS,Met Office,2020-07-16,11 SERVICES,CHIEF FINANCIAL OFFICER,XUPER,444500,795,316677090
BEIS,Met Office,2020-07-16,11 SERVICES,CHIEF FINANCIAL OFFICER,XUPER,444500,450,316677090
BEIS,Met Office,2020-07-17,06 ACCOMMODATION,GOVERNMENT SERVICES,SCOTTISH HYDRO-ELECTRIC,444792,55.98,553769603
BEIS,Met Office,2020-07-22,11 SERVICES,SCIENCE,Bureau Of Meteorology,444515,2464.57,-
BEIS,Met Office,2020-07-22,11 SERVICES,GOVERNMENT SERVICES,ECMWF,21600,1349.5,NOTVATREG
BEIS,Met Office,2020-07-22,11 SERVICES,GOVERNMENT SERVICES,ECMWF,21609,1282.49,NOTVATREG
BEIS,Met Office,2020-07-22,11 SERVICES,GOVERNMENT SERVICES,ECMWF,21610,31499.52,NOTVATREG
BEIS,Met Office,2020-07-22,11 SERVICES,GOVERNMENT SERVICES,ECMWF,21613,11981.53,NOTVATREG
BEIS,Met Office,2020-07-22,11 SERVICES,GOVERNMENT SERVICES,ECMWF,21614,6189.96,NOTVATREG
BEIS,Met Office,2020-07-22,11 SERVICES,GOVERNMENT SERVICES,ECMWF,21615,3570.68,NOTVATREG
BEIS,Met Office,2020-07-22,11 SERVICES,GOVERNMENT SERVICES,ECMWF,21616,2246.11,NOTVATREG
BEIS,Met Office,2020-07-22,11 SERVICES,GOVERNMENT SERVICES,ECMWF,21619,5048.62,NOTVATREG
BEIS,Met Office,2020-07-22,11 SERVICES,GOVERNMENT SERVICES,ECMWF,21620,420.64,NOTVATREG
BEIS,Met Office,2020-07-22,11 SERVICES,GOVERNMENT SERVICES,ECMWF,21621,31499.52,NOTVATREG
BEIS,Met Office,2020-07-22,11 SERVICES,GOVERNMENT SERVICES,ECMWF,21623,101.52,NOTVATREG
BEIS,Met Office,2020-07-22,11 SERVICES,GOVERNMENT SERVICES,ECMWF,21624,85.05,NOTVATREG
BEIS,Met Office,2020-07-22,11 SERVICES,GOVERNMENT SERVICES,ECMWF,21625,10384.46,NOTVATREG
BEIS,Met Office,2020-07-22,11 SERVICES,GOVERNMENT SERVICES,ECMWF,21629,163.91,NOTVATREG
BEIS,Met Office,2020-07-22,11 SERVICES,SCIENCE,Environment Canada,443643,824.18,-
BEIS,Met Office,2020-07-22,06 ACCOMMODATION,CHIEF FINANCIAL OFFICER,JAMES & MARCIA BENJAMIN,444233,520,-
BEIS,Met Office,2020-07-22,11 SERVICES,GOVERNMENT SERVICES,KENYA METEOROLOGICAL DEPARTMENT,444454,766.63,-
BEIS,Met Office,2020-07-22,11 SERVICES,SCIENCE,UEA CONSULTING LTD,21556,8830.65,595183505
BEIS,Met Office,2020-07-23,06 ACCOMMODATION,CHIEF FINANCIAL OFFICER,ABERDEEN CITY COUNCIL,444776,1715.11,222627191
BEIS,Met Office,2020-07-23,06 ACCOMMODATION,CHIEF FINANCIAL OFFICER,ABERDEEN CITY COUNCIL,444784,3528.23,222627191
BEIS,Met Office,2020-07-23,06 ACCOMMODATION,CHIEF FINANCIAL OFFICER,ABERDEEN CITY COUNCIL,444790,28660.96,222627191
BEIS,Met Office,2020-07-23,06 ACCOMMODATION,CHIEF FINANCIAL OFFICER,ABERDEENSHIRE COUNCIL,444783,4655.3,6637545408
BEIS,Met Office,2020-07-23,06 ACCOMMODATION,CHIEF FINANCIAL OFFICER,ABERDEENSHIRE COUNCIL,444787,3234.21,6637545408
BEIS,Met Office,2020-07-23,06 ACCOMMODATION,CHIEF FINANCIAL OFFICER,ABERDEENSHIRE COUNCIL,444789,3234.21,6637545408
BEIS,Met Office,2020-07-23,11 SERVICES,CHIEF FINANCIAL OFFICER,ADAM PHONES LTD,444624,354.6,538877093
BEIS,Met Office,2020-07-23,11 SERVICES,CHIEF FINANCIAL OFFICER,ADAM PHONES LTD,444625,342,538877093
BEIS,Met Office,2020-07-23,11 SERVICES,CHIEF FINANCIAL OFFICER,ADAM PHONES LTD,444627,353.4,538877093
BEIS,Met Office,2020-07-23,11 SERVICES,CHIEF FINANCIAL OFFICER,ADAM PHONES LTD,444628,330.6,538877093
BEIS,Met Office,2020-07-23,11 SERVICES,CHIEF FINANCIAL OFFICER,ADAM PHONES LTD,444629,695.4,538877093
BEIS,Met Office,2020-07-23,11 SERVICES,CHIEF FINANCIAL OFFICER,ADAM PHONES LTD,444630,353.4,538877093
BEIS,Met Office,2020-07-23,11 SERVICES,CHIEF FINANCIAL OFFICER,ALLSTAR BUSINESS SOLUTIONS LTD,444729,1653.11,747880191
BEIS,Met Office,2020-07-23,11 SERVICES,OPERATIONS,APPLIED SATELLITE TECHNOLOGY SYSTEMS LTD,444832,33.21,720108683
BEIS,Met Office,2020-07-23,11 SERVICES,OPERATIONS,APPLIED SATELLITE TECHNOLOGY SYSTEMS LTD,444833,376.18,720108683
BEIS,Met Office,2020-07-23,11 SERVICES,OPERATIONS,APPLIED SATELLITE TECHNOLOGY SYSTEMS LTD,444834,134,720108683
BEIS,Met Office,2020-07-23,12 INTERNATIONAL,OPERATIONS,APPLIED SATELLITE TECHNOLOGY SYSTEMS LTD,444835,33.21,720108683
BEIS,Met Office,2020-07-23,11 SERVICES,OPERATIONS,APPLIED SATELLITE TECHNOLOGY SYSTEMS LTD,444837,33.21,720108683
BEIS,Met Office,2020-07-23,11 SERVICES,OPERATIONS,APPLIED SATELLITE TECHNOLOGY SYSTEMS LTD,444838,255.46,720108683
BEIS,Met Office,2020-07-23,11 SERVICES,STRATEGIC INVESTMENT,BAE SYSTEMS APPLIED INTELLIGENCE LIMITED,444733,41060,GB641407169
BEIS,Met Office,2020-07-23,11 SERVICES,STRATEGIC INVESTMENT,BAE SYSTEMS APPLIED INTELLIGENCE LIMITED,444839,31760,GB641407169
BEIS,Met Office,2020-07-23,11 SERVICES,STRATEGIC INVESTMENT,BAE SYSTEMS APPLIED INTELLIGENCE LIMITED,444847,17785.18,GB641407169
BEIS,Met Office,2020-07-23,04 CONTRACTORS,STRATEGIC INVESTMENT,BJSS LIMITED,444604,11900,613295452
BEIS,Met Office,2020-07-23,04 CONTRACTORS,STRATEGIC INVESTMENT,BJSS LIMITED,444613,2550,613295452
BEIS,Met Office,2020-07-23,04 CONTRACTORS,STRATEGIC INVESTMENT,BJSS LIMITED,444613,7225,613295452
BEIS,Met Office,2020-07-23,11 SERVICES,TECHNOLOGY,BJSS LIMITED,444881,14400,613295452
BEIS,Met Office,2020-07-23,06 ACCOMMODATION,CHIEF FINANCIAL OFFICER,BRITISH GAS TRADING LTD,444651,108.34,684966762
BEIS,Met Office,2020-07-23,06 ACCOMMODATION,CHIEF FINANCIAL OFFICER,BRITISH GAS TRADING LTD,444652,92.14,684966762
BEIS,Met Office,2020-07-23,11 SERVICES,CHIEF FINANCIAL OFFICER,BT PLC,444768,13881,245719348
BEIS,Met Office,2020-07-23,11 SERVICES,GOVERNMENT SERVICES,CACI LTD,444840,331.25,380609841
BEIS,Met Office,2020-07-23,11 SERVICES,GOVERNMENT SERVICES,CACI LTD,444840,2581.25,380609841
BEIS,Met Office,2020-07-23,11 SERVICES,GOVERNMENT SERVICES,CACI LTD,444840,9813.75,380609841
BEIS,Met Office,2020-07-23,INFORMATION TECHNOLOGY,STRATEGIC INVESTMENT,Campbell Scientific Ltd,444640,2628.35,428453933
BEIS,Met Office,2020-07-23,INFORMATION TECHNOLOGY,STRATEGIC INVESTMENT,Campbell Scientific Ltd,444640,1873.8,428453933
BEIS,Met Office,2020-07-23,INFORMATION TECHNOLOGY,STRATEGIC INVESTMENT,Campbell Scientific Ltd,444640,144,428453933
BEIS,Met Office,2020-07-23,11 SERVICES,STRATEGIC INVESTMENT,Campbell Scientific Ltd,444640,1247.4,428453933
BEIS,Met Office,2020-07-23,INFORMATION TECHNOLOGY,STRATEGIC INVESTMENT,Campbell Scientific Ltd,444641,2229.48,428453933
BEIS,Met Office,2020-07-23,INFORMATION TECHNOLOGY,STRATEGIC INVESTMENT,Campbell Scientific Ltd,444642,1873.8,428453933
BEIS,Met Office,2020-07-23,03 STAFF COSTS T&S,OPERATIONS,CARTUS LTD,444756,1091.87,768489458
BEIS,Met Office,2020-07-23,03 STAFF COSTS T&S,OPERATIONS,CARTUS LTD,444758,33.6,768489458
BEIS,Met Office,2020-07-23,03 STAFF COSTS T&S,OPERATIONS,CARTUS LTD,444759,1386,768489458
BEIS,Met Office,2020-07-23,03 STAFF COSTS T&S,OPERATIONS,CARTUS LTD,444760,355,768489458
BEIS,Met Office,2020-07-23,03 STAFF COSTS T&S,OPERATIONS,CARTUS LTD,444762,660.48,768489458
BEIS,Met Office,2020-07-23,03 STAFF COSTS T&S,OPERATIONS,CARTUS LTD,444763,782.14,768489458
BEIS,Met Office,2020-07-23,03 STAFF COSTS T&S,OPERATIONS,CARTUS LTD,444764,137,768489458
BEIS,Met Office,2020-07-23,03 STAFF COSTS T&S,OPERATIONS,CARTUS LTD,444765,8268,768489458
BEIS,Met Office,2020-07-23,03 STAFF COSTS T&S,OPERATIONS,CARTUS LTD,444766,299.82,768489458
BEIS,Met Office,2020-07-23,INFORMATION TECHNOLOGY,TECHNOLOGY,COMPUTACENTER (UK) LTD,443523,826316,490334648
BEIS,Met Office,2020-07-23,INFORMATION TECHNOLOGY,TECHNOLOGY,COMPUTACENTER (UK) LTD,444883,-780599,490334648
BEIS,Met Office,2020-07-23,13 MISCELLANEOUS,CORPORATE,DEVON & CORNWALL BUSINESS COUNCIL,444112,600,768969833
BEIS,Met Office,2020-07-23,06 ACCOMMODATION,CHIEF FINANCIAL OFFICER,EDF ENERGY CUSTOMERS PLC,443974,-118376.76,523041202
BEIS,Met Office,2020-07-23,06 ACCOMMODATION,CHIEF FINANCIAL OFFICER,EDF ENERGY CUSTOMERS PLC,443975,-148329.44,523041202
BEIS,Met Office,2020-07-23,06 ACCOMMODATION,CHIEF FINANCIAL OFFICER,EDF ENERGY CUSTOMERS PLC,444239,3450.3,523041202
BEIS,Met Office,2020-07-23,06 ACCOMMODATION,CHIEF FINANCIAL OFFICER,EDF ENERGY CUSTOMERS PLC,444636,91531.86,523041202
BEIS,Met Office,2020-07-23,06 ACCOMMODATION,CHIEF FINANCIAL OFFICER,EDF ENERGY CUSTOMERS PLC,444726,148426.95,523041202
BEIS,Met Office,2020-07-23,06 ACCOMMODATION,CHIEF FINANCIAL OFFICER,EDF ENERGY CUSTOMERS PLC,444727,109708.06,523041202
BEIS,Met Office,2020-07-23,03 STAFF COSTS T&S,CHIEF FINANCIAL OFFICER,ENTERPRISE RENT A CAR UK LTD,444863,240.69,215557314
BEIS,Met Office,2020-07-23,03 STAFF COSTS T&S,CHIEF FINANCIAL OFFICER,ENTERPRISE RENT A CAR UK LTD,444864,408.51,215557314
BEIS,Met Office,2020-07-23,03 STAFF COSTS T&S,CHIEF FINANCIAL OFFICER,ENTERPRISE RENT A CAR UK LTD,444865,337.12,215557314
BEIS,Met Office,2020-07-23,07 EQUIPMENT,OPERATIONS,Environmental Measurements Ltd,444769,20,348513154
BEIS,Met Office,2020-07-23,07 EQUIPMENT,OPERATIONS,Environmental Measurements Ltd,444769,126,348513154
BEIS,Met Office,2020-07-23,07 EQUIPMENT,OPERATIONS,Environmental Measurements Ltd,444769,189,348513154
BEIS,Met Office,2020-07-23,11 SERVICES,CORPORATE,EQUINITI ICS LTD,444560,452,915967778
BEIS,Met Office,2020-07-23,04 CONTRACTORS,TECHNOLOGY,FDM GROUP LIMITED,444634,3510,583540529
BEIS,Met Office,2020-07-23,06 ACCOMMODATION,CHIEF FINANCIAL OFFICER,FMS INTERIOR SERVICES LTD,442847,19.35,922056940
BEIS,Met Office,2020-07-23,06 ACCOMMODATION,CHIEF FINANCIAL OFFICER,FMS INTERIOR SERVICES LTD,442847,386.87,922056940
BEIS,Met Office,2020-07-23,11 SERVICES,CORPORATE,HAWK INCENTIVES LTD,444329,3225,238839422
BEIS,Met Office,2020-07-23,11 SERVICES,CORPORATE,HAWK INCENTIVES LTD,444329,161.25,238839422
BEIS,Met Office,2020-07-23,11 SERVICES,CORPORATE,HAWK INCENTIVES LTD,444330,10045,238839422
BEIS,Met Office,2020-07-23,11 SERVICES,CORPORATE,HAWK INCENTIVES LTD,444330,502.25,238839422
BEIS,Met Office,2020-07-23,04 CONTRACTORS,TECHNOLOGY,HAYS SPECIALIST RECRUITMENT LTD,444737,577.59,773695871
BEIS,Met Office,2020-07-23,04 CONTRACTORS,OPERATIONS,HAYS SPECIALIST RECRUITMENT LTD,444738,366.16,773695871
BEIS,Met Office,2020-07-23,04 CONTRACTORS,TECHNOLOGY,HAYS SPECIALIST RECRUITMENT LTD,444739,256.7,773695871
BEIS,Met Office,2020-07-23,04 CONTRACTORS,CORPORATE,HAYS SPECIALIST RECRUITMENT LTD,444740,634.67,773695871
BEIS,Met Office,2020-07-23,04 CONTRACTORS,GOVERNMENT SERVICES,HAYS SPECIALIST RECRUITMENT LTD,444845,183.08,773695871
BEIS,Met Office,2020-07-23,13 MISCELLANEOUS,CORPORATE,HEALTH MANAGEMENT LTD,444516,1447.16,792250621
BEIS,Met Office,2020-07-23,06 ACCOMMODATION,CHIEF FINANCIAL OFFICER,Highland Council,444778,1470.1,663785203
BEIS,Met Office,2020-07-23,06 ACCOMMODATION,CHIEF FINANCIAL OFFICER,Highland Council,444788,1470.1,663785203
BEIS,Met Office,2020-07-23,06 ACCOMMODATION,CHIEF FINANCIAL OFFICER,Highland Council,444807,1470.1,663785203
BEIS,Met Office,2020-07-23,11 SERVICES,SUPERCOMPUTING,HOGAN LOVELLS INTERNATIONAL LLP,444882,11845.1,GB123371543
BEIS,Met Office,2020-07-23,11 SERVICES,SUPERCOMPUTING,HOGAN LOVELLS INTERNATIONAL LLP,444882,18643.25,GB123371543
BEIS,Met Office,2020-07-23,11 SERVICES,SUPERCOMPUTING,HOGAN LOVELLS INTERNATIONAL LLP,444882,12018.2,GB123371543
BEIS,Met Office,2020-07-23,11 SERVICES,SUPERCOMPUTING,HOGAN LOVELLS INTERNATIONAL LLP,444882,0.01,GB123371543
BEIS,Met Office,2020-07-23,11 SERVICES,SUPERCOMPUTING,HOGAN LOVELLS INTERNATIONAL LLP,444882,22689.83,GB123371543
BEIS,Met Office,2020-07-23,11 SERVICES,SUPERCOMPUTING,HOGAN LOVELLS INTERNATIONAL LLP,444882,222174.56,GB123371543
BEIS,Met Office,2020-07-23,11 SERVICES,SUPERCOMPUTING,HOGAN LOVELLS INTERNATIONAL LLP,444882,20201.72,GB123371543
BEIS,Met Office,2020-07-23,11 SERVICES,SUPERCOMPUTING,HOGAN LOVELLS INTERNATIONAL LLP,444882,13870.33,GB123371543
BEIS,Met Office,2020-07-23,04 CONTRACTORS,GOVERNMENT SERVICES,JOBSEEKERS RECRUITMENT SERVICES LTD,444728,848.49,130 1297 14
BEIS,Met Office,2020-07-23,04 CONTRACTORS,GOVERNMENT SERVICES,JOBSEEKERS RECRUITMENT SERVICES LTD,444901,848.04,130 1297 14
BEIS,Met Office,2020-07-23,04 CONTRACTORS,GOVERNMENT SERVICES,JOBSEEKERS RECRUITMENT SERVICES LTD,444902,848.04,130 1297 14
BEIS,Met Office,2020-07-23,04 CONTRACTORS,GOVERNMENT SERVICES,JOBSEEKERS RECRUITMENT SERVICES LTD,444903,663.78,130 1297 14
BEIS,Met Office,2020-07-23,11 SERVICES,CORPORATE,Landmark Information Group Ltd,444557,28694.29,634509735
BEIS,Met Office,2020-07-23,11 SERVICES,CORPORATE,Landmark Information Group Ltd,444730,46232.14,634509735
BEIS,Met Office,2020-07-23,11 SERVICES,CORPORATE,Landmark Information Group Ltd,444731,42615,634509735
BEIS,Met Office,2020-07-23,11 SERVICES,CORPORATE,LUMESSE LTD,443809,1440,115096236
BEIS,Met Office,2020-07-23,07 EQUIPMENT,OPERATIONS,M C ENGINEERING SERVICES,444875,384,813172066
BEIS,Met Office,2020-07-23,11 SERVICES,SCIENCE,MARGARET DAVIES,444844,1000,-
BEIS,Met Office,2020-07-23,06 ACCOMMODATION,CHIEF FINANCIAL OFFICER,MORAY COUNCIL,444734,2925,663755506
BEIS,Met Office,2020-07-23,11 SERVICES,CHIEF FINANCIAL OFFICER,Morton Fraser LLP,444761,200,269129336
BEIS,Met Office,2020-07-23,TRADE CREDITORS,OTHER,NATWEST COMMERCIAL CARDS DIVISION,444869,108206.42,N/A
BEIS,Met Office,2020-07-23,07 EQUIPMENT,CHIEF FINANCIAL OFFICER,NATWEST COMMERCIAL CARDS DIVISION,444870,11534.46,N/A
BEIS,Met Office,2020-07-23,06 ACCOMMODATION,CHIEF FINANCIAL OFFICER,NORSCOTT VENDING SERVICES LTD,444779,85,751402071
BEIS,Met Office,2020-07-23,11 SERVICES,TECHNOLOGY,NTT DATA UK LTD,444871,8790,GB159334590
BEIS,Met Office,2020-07-23,04 CONTRACTORS,TECHNOLOGY,OUTSOURCE UK LIMITED,444745,13225,576118722
BEIS,Met Office,2020-07-23,04 CONTRACTORS,STRATEGIC INVESTMENT,OUTSOURCE UK LIMITED,444746,8000,576118722
BEIS,Met Office,2020-07-23,04 CONTRACTORS,CORPORATE,OUTSOURCE UK LIMITED,444747,4000,576118722
BEIS,Met Office,2020-07-23,04 CONTRACTORS,CORPORATE,OUTSOURCE UK LIMITED,444748,1000,576118722
BEIS,Met Office,2020-07-23,04 CONTRACTORS,TECHNOLOGY,OUTSOURCE UK LIMITED,444749,6733.35,576118722
BEIS,Met Office,2020-07-23,04 CONTRACTORS,TECHNOLOGY,OUTSOURCE UK LIMITED,444750,2715.05,576118722
BEIS,Met Office,2020-07-23,04 CONTRACTORS,OPERATIONS,OUTSOURCE UK LIMITED,444751,6856.56,576118722
BEIS,Met Office,2020-07-23,04 CONTRACTORS,TECHNOLOGY,OUTSOURCE UK LIMITED,444752,11050,576118722
BEIS,Met Office,2020-07-23,04 CONTRACTORS,CHIEF FINANCIAL OFFICER,OUTSOURCE UK LIMITED,444754,5217.45,576118722
BEIS,Met Office,2020-07-23,04 CONTRACTORS,CORPORATE,OUTSOURCE UK LIMITED,444755,5250,576118722
BEIS,Met Office,2020-07-23,04 CONTRACTORS,TECHNOLOGY,OUTSOURCE UK LIMITED,444757,4086,576118722
BEIS,Met Office,2020-07-23,04 CONTRACTORS,CORPORATE,OUTSOURCE UK LIMITED,444850,1750,576118722
BEIS,Met Office,2020-07-23,04 CONTRACTORS,CHIEF FINANCIAL OFFICER,OUTSOURCE UK LIMITED,444853,8602.25,576118722
BEIS,Met Office,2020-07-23,04 CONTRACTORS,STRATEGIC INVESTMENT,OUTSOURCE UK LIMITED,444854,9375,576118722
BEIS,Met Office,2020-07-23,04 CONTRACTORS,CHIEF FINANCIAL OFFICER,OUTSOURCE UK LIMITED,444855,10119.92,576118722
BEIS,Met Office,2020-07-23,04 CONTRACTORS,TECHNOLOGY,OUTSOURCE UK LIMITED,444856,11092.4,576118722
BEIS,Met Office,2020-07-23,06 ACCOMMODATION,CHIEF FINANCIAL OFFICER,PERTH AND KINROSS COUNCIL,444786,4116.27,-
BEIS,Met Office,2020-07-23,13 MISCELLANEOUS,CHIEF FINANCIAL OFFICER,POSTURITE (UK) LTD,444732,21.67,583565114
BEIS,Met Office,2020-07-23,10 EQUIPMENT MAINTENANCE,OPERATIONS,RAISE TELECOMS LTD,444841,15275,166016521
BEIS,Met Office,2020-07-23,11 SERVICES,CHIEF FINANCIAL OFFICER,RSM,442426,5000,890965570
BEIS,Met Office,2020-07-23,10 EQUIPMENT MAINTENANCE,OPERATIONS,SCHLEIFRING SYSTEMS LTD,444773,10236,363124281
BEIS,Met Office,2020-07-23,10 EQUIPMENT MAINTENANCE,OPERATIONS,SCHLEIFRING SYSTEMS LTD,444773,80,363124281
BEIS,Met Office,2020-07-23,11 SERVICES,GOVERNMENT SERVICES,SOCIAL SENSING LTD,444635,2758,-
BEIS,Met Office,2020-07-23,11 SERVICES,CORPORATE,SODEXO MOT SOL UK  LTD (CHILDCARE RECEIPTS),444868,454.38,733644335
BEIS,Met Office,2020-07-23,08 SOFTWARE LICENCES,TECHNOLOGY,SOFTWARE BOX LIMITED,444631,9650,734245248
BEIS,Met Office,2020-07-23,04 CONTRACTORS,CHIEF FINANCIAL OFFICER,SOLOS CONSULTANTS LTD,444343,14347.2,812035476
BEIS,Met Office,2020-07-23,04 CONTRACTORS,STRATEGIC INVESTMENT,SOLOS CONSULTANTS LTD,444344,15405,812035476
BEIS,Met Office,2020-07-23,04 CONTRACTORS,STRATEGIC INVESTMENT,SOLOS CONSULTANTS LTD,444344,2925,812035476
BEIS,Met Office,2020-07-23,04 CONTRACTORS,TECHNOLOGY,SOLOS CONSULTANTS LTD,444345,16929.12,812035476
BEIS,Met Office,2020-07-23,04 CONTRACTORS,TECHNOLOGY,SOLOS CONSULTANTS LTD,444346,14872,812035476
BEIS,Met Office,2020-07-23,04 CONTRACTORS,CORPORATE,SOLOS CONSULTANTS LTD,444350,9992.83,812035476
BEIS,Met Office,2020-07-23,04 CONTRACTORS,CORPORATE,SOLOS CONSULTANTS LTD,444350,2483.67,812035476
BEIS,Met Office,2020-07-23,04 CONTRACTORS,TECHNOLOGY,SOLOS CONSULTANTS LTD,444351,11990.16,812035476
BEIS,Met Office,2020-07-23,04 CONTRACTORS,TECHNOLOGY,SOLOS CONSULTANTS LTD,444352,10600,812035476
BEIS,Met Office,2020-07-23,04 CONTRACTORS,GOVERNMENT SERVICES,SOLOS CONSULTANTS LTD,444353,9858.5,812035476
BEIS,Met Office,2020-07-23,04 CONTRACTORS,TECHNOLOGY,SOLOS CONSULTANTS LTD,444355,12676.5,812035476
BEIS,Met Office,2020-07-23,04 CONTRACTORS,TECHNOLOGY,SOLOS CONSULTANTS LTD,444356,15622.75,812035476
BEIS,Met Office,2020-07-23,04 CONTRACTORS,TECHNOLOGY,SOLOS CONSULTANTS LTD,444357,14682.25,812035476
BEIS,Met Office,2020-07-23,04 CONTRACTORS,TECHNOLOGY,SOLOS CONSULTANTS LTD,444358,10032,812035476
BEIS,Met Office,2020-07-23,04 CONTRACTORS,CHIEF FINANCIAL OFFICER,SOLOS CONSULTANTS LTD,444359,6512.44,812035476
BEIS,Met Office,2020-07-23,04 CONTRACTORS,CHIEF FINANCIAL OFFICER,SOLOS CONSULTANTS LTD,444359,1429.56,812035476
BEIS,Met Office,2020-07-23,04 CONTRACTORS,TECHNOLOGY,SOLOS CONSULTANTS LTD,444432,19201.88,812035476
BEIS,Met Office,2020-07-23,04 CONTRACTORS,STRATEGIC INVESTMENT,SOLOS CONSULTANTS LTD,444455,13104,812035476
BEIS,Met Office,2020-07-23,04 CONTRACTORS,TECHNOLOGY,SOLOS CONSULTANTS LTD,444456,13000,812035476
BEIS,Met Office,2020-07-23,04 CONTRACTORS,STRATEGIC INVESTMENT,SOLOS CONSULTANTS LTD,444457,11235.5,812035476
BEIS,Met Office,2020-07-23,04 CONTRACTORS,BUSINESS GROUP,SOLOS CONSULTANTS LTD,444458,11235.5,812035476
BEIS,Met Office,2020-07-23,04 CONTRACTORS,CORPORATE,SOLOS CONSULTANTS LTD,444466,9924.25,812035476
BEIS,Met Office,2020-07-23,04 CONTRACTORS,STRATEGIC INVESTMENT,SOLOS CONSULTANTS LTD,444467,22100,812035476
BEIS,Met Office,2020-07-23,04 CONTRACTORS,TECHNOLOGY,SOLOS CONSULTANTS LTD,444468,10250,812035476
BEIS,Met Office,2020-07-23,04 CONTRACTORS,CORPORATE,SOLOS CONSULTANTS LTD,444469,12017.5,812035476
BEIS,Met Office,2020-07-23,04 CONTRACTORS,OPERATIONS,SOLOS CONSULTANTS LTD,444470,10848.42,812035476
BEIS,Met Office,2020-07-23,04 CONTRACTORS,TECHNOLOGY,SOLOS CONSULTANTS LTD,444471,8621.36,812035476
BEIS,Met Office,2020-07-23,04 CONTRACTORS,TECHNOLOGY,SOLOS CONSULTANTS LTD,444471,1175.64,812035476
BEIS,Met Office,2020-07-23,04 CONTRACTORS,TECHNOLOGY,SOLOS CONSULTANTS LTD,444472,11913,812035476
BEIS,Met Office,2020-07-23,04 CONTRACTORS,OPERATIONS,SOLOS CONSULTANTS LTD,444473,17480.25,812035476
BEIS,Met Office,2020-07-23,04 CONTRACTORS,STRATEGIC INVESTMENT,SOLOS CONSULTANTS LTD,444474,17480.25,812035476
BEIS,Met Office,2020-07-23,04 CONTRACTORS,TECHNOLOGY,SOLOS CONSULTANTS LTD,444475,16250,812035476
BEIS,Met Office,2020-07-23,04 CONTRACTORS,TECHNOLOGY,SOLOS CONSULTANTS LTD,444476,11235.5,812035476
BEIS,Met Office,2020-07-23,04 CONTRACTORS,CHIEF FINANCIAL OFFICER,SOLOS CONSULTANTS LTD,444477,14998.5,812035476
BEIS,Met Office,2020-07-23,04 CONTRACTORS,STRATEGIC INVESTMENT,SOLOS CONSULTANTS LTD,444478,14534,812035476
BEIS,Met Office,2020-07-23,04 CONTRACTORS,STRATEGIC INVESTMENT,SOLOS CONSULTANTS LTD,444478,1300,812035476
BEIS,Met Office,2020-07-23,04 CONTRACTORS,STRATEGIC INVESTMENT,SOLOS CONSULTANTS LTD,444479,10032,812035476
BEIS,Met Office,2020-07-23,04 CONTRACTORS,TECHNOLOGY,SOLOS CONSULTANTS LTD,444480,23400,812035476
BEIS,Met Office,2020-07-23,04 CONTRACTORS,TECHNOLOGY,SOLOS CONSULTANTS LTD,444481,8621.25,812035476
BEIS,Met Office,2020-07-23,04 CONTRACTORS,TECHNOLOGY,SOLOS CONSULTANTS LTD,444579,11156.5,812035476
BEIS,Met Office,2020-07-23,04 CONTRACTORS,OPERATIONS,SOLOS CONSULTANTS LTD,444767,11067,812035476
BEIS,Met Office,2020-07-23,06 ACCOMMODATION,CHIEF FINANCIAL OFFICER,SOUTH WEST WATER LTD,444791,1909.92,236873674
BEIS,Met Office,2020-07-23,06 ACCOMMODATION,CHIEF FINANCIAL OFFICER,STONE HILL PARK LTD,444772,19.33,196461180
BEIS,Met Office,2020-07-23,11 SERVICES,CHIEF FINANCIAL OFFICER,SURE SOUTH ATLANTIC LTD,444632,613.18,NOVATREG
BEIS,Met Office,2020-07-23,06 ACCOMMODATION,CHIEF FINANCIAL OFFICER,THAMES WATER,444771,1750,-
BEIS,Met Office,2020-07-23,13 MISCELLANEOUS,CORPORATE,THOMSON REUTERS (PROFESSIONAL) UK LTD,444578,20000,900548743
BEIS,Met Office,2020-07-23,06 ACCOMMODATION,CHIEF FINANCIAL OFFICER,THORNLEY WILDLIFE SERVICES,442592,160,N/A
BEIS,Met Office,2020-07-23,06 ACCOMMODATION,CHIEF FINANCIAL OFFICER,THORNLEY WILDLIFE SERVICES,443282,160,N/A
BEIS,Met Office,2020-07-23,11 SERVICES,GOVERNMENT SERVICES,University Of Leeds,444851,31751.11,613451470
BEIS,Met Office,2020-07-23,11 SERVICES,GOVERNMENT SERVICES,UNIVERSITY OF SUSSEX,444614,6717.55,692712320
BEIS,Met Office,2020-07-23,11 SERVICES,CORPORATE,VALERIE WARK ASSOCIATES LIMITED,444522,500,727398007
BEIS,Met Office,2020-07-23,04 CONTRACTORS,GOVERNMENT SERVICES,WA CONSULTANTS LTD,444876,2970,876328977
BEIS,Met Office,2020-07-23,04 CONTRACTORS,GOVERNMENT SERVICES,WA CONSULTANTS LTD,444877,2160,876328977
BEIS,Met Office,2020-07-24,11 SERVICES,GOVERNMENT SERVICES,DBS FINANCE RECEIPTS CTS,444861,12054.02,888805068
BEIS,Met Office,2020-07-24,11 SERVICES,GOVERNMENT SERVICES,FCO,444570,39.33,888813560
BEIS,Met Office,2020-07-29,11 SERVICES,TECHNOLOGY,AMAZON WEB SERVICES INC.,9331,0.01,N/A
BEIS,Met Office,2020-07-29,11 SERVICES,TECHNOLOGY,AMAZON WEB SERVICES INC.,9855,0.44,N/A
BEIS,Met Office,2020-07-29,11 SERVICES,GOVERNMENT SERVICES,"BASILIO SOZINHO CUBULA SERVI�OS, E.I.",9875,1929.97,N/A
BEIS,Met Office,2020-07-29,11 SERVICES,TECHNOLOGY,BLOOMREACH B.V.,444186,234593,NL815260076B01
BEIS,Met Office,2020-07-29,11 SERVICES,GOVERNMENT SERVICES,CENTRO INTERNACIONAL MEJORAMIENTO DE MAIZ Y T,444243,4127,CIM890330FI8
BEIS,Met Office,2020-07-29,11 SERVICES,GOVERNMENT SERVICES,ECMWF,21586,814.28,NOTVATREG
BEIS,Met Office,2020-07-29,11 SERVICES,GOVERNMENT SERVICES,ECMWF,21587,1993.49,NOTVATREG
BEIS,Met Office,2020-07-29,11 SERVICES,GOVERNMENT SERVICES,ECMWF,21590,4166.46,NOTVATREG
BEIS,Met Office,2020-07-29,11 SERVICES,GOVERNMENT SERVICES,ECMWF,21591,983.36,NOTVATREG
BEIS,Met Office,2020-07-29,11 SERVICES,GOVERNMENT SERVICES,ECMWF,21592,10706.56,NOTVATREG
BEIS,Met Office,2020-07-29,11 SERVICES,GOVERNMENT SERVICES,ECMWF,21593,2688.48,NOTVATREG
BEIS,Met Office,2020-07-29,11 SERVICES,GOVERNMENT SERVICES,ECMWF,21594,6043.17,NOTVATREG
BEIS,Met Office,2020-07-29,11 SERVICES,GOVERNMENT SERVICES,ECMWF,21596,9823.14,NOTVATREG
BEIS,Met Office,2020-07-29,11 SERVICES,GOVERNMENT SERVICES,ECMWF,21597,517.01,NOTVATREG
BEIS,Met Office,2020-07-29,11 SERVICES,GOVERNMENT SERVICES,ECMWF,21598,1242.53,NOTVATREG
BEIS,Met Office,2020-07-29,11 SERVICES,GOVERNMENT SERVICES,ECMWF,21608,12884.4,NOTVATREG
BEIS,Met Office,2020-07-29,11 SERVICES,GOVERNMENT SERVICES,ECMWF,21612,7171.73,NOTVATREG
BEIS,Met Office,2020-07-29,11 SERVICES,GOVERNMENT SERVICES,ECMWF,21617,3877.03,NOTVATREG
BEIS,Met Office,2020-07-29,11 SERVICES,GOVERNMENT SERVICES,ECMWF,21626,3193.34,NOTVATREG
BEIS,Met Office,2020-07-29,11 SERVICES,GOVERNMENT SERVICES,ECMWF,21630,304.97,NOTVATREG
BEIS,Met Office,2020-07-29,11 SERVICES,GOVERNMENT SERVICES,ECMWF,21631,19973.71,NOTVATREG
BEIS,Met Office,2020-07-29,11 SERVICES,GOVERNMENT SERVICES,ECMWF,21633,5393.59,NOTVATREG
BEIS,Met Office,2020-07-29,11 SERVICES,GOVERNMENT SERVICES,ECMWF,21634,706.93,NOTVATREG
BEIS,Met Office,2020-07-29,11 SERVICES,CHIEF FINANCIAL OFFICER,EIR,21676,55.67,4736919B
BEIS,Met Office,2020-07-29,08 SOFTWARE LICENCES,STRATEGIC INVESTMENT,"IBL SOFTWARE ENGINEERING, SPOL S.R.O.",21582,954.97,SK2020241883
BEIS,Met Office,2020-07-29,08 SOFTWARE LICENCES,STRATEGIC INVESTMENT,"IBL SOFTWARE ENGINEERING, SPOL S.R.O.",21583,3183.24,SK2020241883
BEIS,Met Office,2020-07-29,08 SOFTWARE LICENCES,STRATEGIC INVESTMENT,"IBL SOFTWARE ENGINEERING, SPOL S.R.O.",444262,135.17,SK2020241883
BEIS,Met Office,2020-07-29,08 SOFTWARE LICENCES,STRATEGIC INVESTMENT,"IBL SOFTWARE ENGINEERING, SPOL S.R.O.",444263,409.08,SK2020241883
BEIS,Met Office,2020-07-29,08 SOFTWARE LICENCES,TECHNOLOGY,"IBL SOFTWARE ENGINEERING, SPOL S.R.O.",444264,7529.72,SK2020241883
BEIS,Met Office,2020-07-29,08 SOFTWARE LICENCES,TECHNOLOGY,"IBL SOFTWARE ENGINEERING, SPOL S.R.O.",444264,30546.71,SK2020241883
BEIS,Met Office,2020-07-29,11 SERVICES,SCIENCE,REGENTS OF THE UNIVERSITY OF COLORADO,21656,18143.96,-
BEIS,Met Office,2020-07-29,11 SERVICES,CHIEF FINANCIAL OFFICER,SWISSCOM (SCHWEIZ) AG,444348,91.32,-
BEIS,Met Office,2020-07-29,08 SOFTWARE LICENCES,TECHNOLOGY,URBAN AIRSHIP INC.,444552,168.94,-
BEIS,Met Office,2020-07-30,06 ACCOMMODATION,CHIEF FINANCIAL OFFICER,A & J GARDEN SERVICES LTD,444866,1220,190817003
BEIS,Met Office,2020-07-30,06 ACCOMMODATION,CHIEF FINANCIAL OFFICER,A & J GARDEN SERVICES LTD,444866,550,190817003
BEIS,Met Office,2020-07-30,06 ACCOMMODATION,CHIEF FINANCIAL OFFICER,A & J GARDEN SERVICES LTD,444867,144,190817003
BEIS,Met Office,2020-07-30,06 ACCOMMODATION,CHIEF FINANCIAL OFFICER,A & J GARDEN SERVICES LTD,444867,330,190817003
BEIS,Met Office,2020-07-30,06 ACCOMMODATION,CHIEF FINANCIAL OFFICER,A & J GARDEN SERVICES LTD,444867,156,190817003
BEIS,Met Office,2020-07-30,06 ACCOMMODATION,CHIEF FINANCIAL OFFICER,A & J GARDEN SERVICES LTD,444867,200,190817003
BEIS,Met Office,2020-07-30,06 ACCOMMODATION,CHIEF FINANCIAL OFFICER,A & J GARDEN SERVICES LTD,444867,156,190817003
BEIS,Met Office,2020-07-30,06 ACCOMMODATION,CHIEF FINANCIAL OFFICER,A & J GARDEN SERVICES LTD,444867,200,190817003
BEIS,Met Office,2020-07-30,06 ACCOMMODATION,CHIEF FINANCIAL OFFICER,A & J GARDEN SERVICES LTD,444867,200,190817003
BEIS,Met Office,2020-07-30,06 ACCOMMODATION,CHIEF FINANCIAL OFFICER,A & J GARDEN SERVICES LTD,444867,156,190817003
BEIS,Met Office,2020-07-30,06 ACCOMMODATION,CHIEF FINANCIAL OFFICER,A & J GARDEN SERVICES LTD,444867,200,190817003
BEIS,Met Office,2020-07-30,06 ACCOMMODATION,CHIEF FINANCIAL OFFICER,A & J GARDEN SERVICES LTD,444867,200,190817003
BEIS,Met Office,2020-07-30,06 ACCOMMODATION,CHIEF FINANCIAL OFFICER,A & J GARDEN SERVICES LTD,444867,156,190817003
BEIS,Met Office,2020-07-30,06 ACCOMMODATION,CHIEF FINANCIAL OFFICER,A & J GARDEN SERVICES LTD,444867,156,190817003
BEIS,Met Office,2020-07-30,06 ACCOMMODATION,CHIEF FINANCIAL OFFICER,A & J GARDEN SERVICES LTD,444867,110,190817003
BEIS,Met Office,2020-07-30,06 ACCOMMODATION,CHIEF FINANCIAL OFFICER,A & J GARDEN SERVICES LTD,444867,200,190817003
BEIS,Met Office,2020-07-30,06 ACCOMMODATION,CHIEF FINANCIAL OFFICER,A & J GARDEN SERVICES LTD,444867,156,190817003
BEIS,Met Office,2020-07-30,06 ACCOMMODATION,CHIEF FINANCIAL OFFICER,A & J GARDEN SERVICES LTD,444867,200,190817003
BEIS,Met Office,2020-07-30,11 SERVICES,CHIEF FINANCIAL OFFICER,ADAM PHONES LTD,445049,353.4,538877093
BEIS,Met Office,2020-07-30,06 ACCOMMODATION,CHIEF FINANCIAL OFFICER,APPLECROSS TRUST LTD,445036,752.26,596728869
BEIS,Met Office,2020-07-30,11 SERVICES,OPERATIONS,APPLIED SATELLITE TECHNOLOGY SYSTEMS LTD,444836,10214.36,720108683
BEIS,Met Office,2020-07-30,11 SERVICES,TECHNOLOGY,BAE SYSTEMS APPLIED INTELLIGENCE LIMITED,444872,53337.25,GB641407169
BEIS,Met Office,2020-07-30,11 SERVICES,STRATEGIC INVESTMENT,BAE SYSTEMS APPLIED INTELLIGENCE LIMITED,444975,63705.36,GB641407169
BEIS,Met Office,2020-07-30,06 ACCOMMODATION,CHIEF FINANCIAL OFFICER,BANNER GROUP LIMITED,444775,21.9,GB391085740
BEIS,Met Office,2020-07-30,11 SERVICES,CORPORATE,BEIS,444980,155,888825550
BEIS,Met Office,2020-07-30,06 ACCOMMODATION,CHIEF FINANCIAL OFFICER,BRITISH GAS TRADING LTD,444605,4716.69,684966762
BEIS,Met Office,2020-07-30,11 SERVICES,CHIEF FINANCIAL OFFICER,BT GLOBAL SERVICES,444849,15219.41,245719348
BEIS,Met Office,2020-07-30,11 SERVICES,CHIEF FINANCIAL OFFICER,BT GLOBAL SERVICES,445002,17901.41,245719348
BEIS,Met Office,2020-07-30,11 SERVICES,CHIEF FINANCIAL OFFICER,CABINET OFFICE - COF LEAD ACCOUNT,445021,1950,-
BEIS,Met Office,2020-07-30,11 SERVICES,GOVERNMENT SERVICES,CACI LTD,445003,662.5,380609841
BEIS,Met Office,2020-07-30,11 SERVICES,GOVERNMENT SERVICES,CACI LTD,445003,8668.75,380609841
BEIS,Met Office,2020-07-30,11 SERVICES,GOVERNMENT SERVICES,CACI LTD,445003,35371.6,380609841
BEIS,Met Office,2020-07-30,11 SERVICES,STRATEGIC INVESTMENT,CACI LTD,445024,32977.5,380609841
BEIS,Met Office,2020-07-30,06 ACCOMMODATION,CHIEF FINANCIAL OFFICER,CALOR GAS LIMITED,444994,34.25,207610984
BEIS,Met Office,2020-07-30,06 ACCOMMODATION,CHIEF FINANCIAL OFFICER,CALOR GAS LIMITED,444995,34.25,207610984
BEIS,Met Office,2020-07-30,06 ACCOMMODATION,CHIEF FINANCIAL OFFICER,CALOR GAS LIMITED,444996,49.18,207610984
BEIS,Met Office,2020-07-30,06 ACCOMMODATION,CHIEF FINANCIAL OFFICER,CALOR GAS LIMITED,444997,34.25,207610984
BEIS,Met Office,2020-07-30,06 ACCOMMODATION,CHIEF FINANCIAL OFFICER,CALOR GAS LIMITED,444998,19.61,207610984
BEIS,Met Office,2020-07-30,06 ACCOMMODATION,CHIEF FINANCIAL OFFICER,CALOR GAS LIMITED,444999,34.25,207610984
BEIS,Met Office,2020-07-30,06 ACCOMMODATION,CHIEF FINANCIAL OFFICER,CALOR GAS LIMITED,445000,34.25,207610984
BEIS,Met Office,2020-07-30,STOCK,OPERATIONS,Campbell Scientific Ltd,444643,0,428453933
BEIS,Met Office,2020-07-30,STOCK,OPERATIONS,Campbell Scientific Ltd,444643,5283,428453933
BEIS,Met Office,2020-07-30,11 SERVICES,OPERATIONS,Campbell Scientific Ltd,444643,31,428453933
BEIS,Met Office,2020-07-30,13 MISCELLANEOUS,CHIEF FINANCIAL OFFICER,CANON UK LTD,444969,10,523797128
BEIS,Met Office,2020-07-30,08 SOFTWARE LICENCES,CHIEF FINANCIAL OFFICER,CEMAR,444611,450,915042161
BEIS,Met Office,2020-07-30,08 SOFTWARE LICENCES,CHIEF FINANCIAL OFFICER,CEMAR,444878,180,915042161
BEIS,Met Office,2020-07-30,08 SOFTWARE LICENCES,CHIEF FINANCIAL OFFICER,CEMAR,444879,90,915042161
BEIS,Met Office,2020-07-30,08 SOFTWARE LICENCES,CHIEF FINANCIAL OFFICER,CEMAR,444880,450,915042161
BEIS,Met Office,2020-07-30,INFORMATION TECHNOLOGY,TECHNOLOGY,COMPUTACENTER (UK) LTD,442600,141157,490334648
BEIS,Met Office,2020-07-30,INFORMATION TECHNOLOGY,TECHNOLOGY,COMPUTACENTER (UK) LTD,442600,1547377,490334648
BEIS,Met Office,2020-07-30,07 EQUIPMENT,TECHNOLOGY,COMPUTACENTER (UK) LTD,444873,3808.2,490334648
BEIS,Met Office,2020-07-30,07 EQUIPMENT,TECHNOLOGY,COMPUTACENTER (UK) LTD,444873,475.7,490334648
BEIS,Met Office,2020-07-30,07 EQUIPMENT,TECHNOLOGY,COMPUTACENTER (UK) LTD,444873,795.5,490334648
BEIS,Met Office,2020-07-30,10 EQUIPMENT MAINTENANCE,TECHNOLOGY,COMPUTACENTER (UK) LTD,444970,45995,490334648
BEIS,Met Office,2020-07-30,INFORMATION TECHNOLOGY,TECHNOLOGY,COMPUTACENTER (UK) LTD,444971,17850.16,490334648
BEIS,Met Office,2020-07-30,10 EQUIPMENT MAINTENANCE,TECHNOLOGY,COMPUTACENTER (UK) LTD,445027,3286.34,490334648
BEIS,Met Office,2020-07-30,08 SOFTWARE LICENCES,TECHNOLOGY,COMPUTACENTER (UK) LTD,445067,9658.32,490334648
BEIS,Met Office,2020-07-30,INFORMATION TECHNOLOGY,TECHNOLOGY,COMPUTACENTER (UK) LTD,445068,13127.76,490334648
BEIS,Met Office,2020-07-30,08 SOFTWARE LICENCES,TECHNOLOGY,DXC TECHNOLOGY,444976,424625.04,GB432995915
BEIS,Met Office,2020-07-30,06 ACCOMMODATION,CHIEF FINANCIAL OFFICER,EDF ENERGY CUSTOMERS PLC,444725,366937.73,523041202
BEIS,Met Office,2020-07-30,08 SOFTWARE LICENCES,TECHNOLOGY,ENTCORP UK LTD,444782,4861.8,314149679
BEIS,Met Office,2020-07-30,06 ACCOMMODATION,CHIEF FINANCIAL OFFICER,ENVIRONMENT AGENCY RECEIPTS,444992,75,662490134
BEIS,Met Office,2020-07-30,06 ACCOMMODATION,CHIEF FINANCIAL OFFICER,Exeter City Council,440193,140288,142335594
BEIS,Met Office,2020-07-30,11 SERVICES,CORPORATE,FRANCIS CLARK LLP,444785,555,855910212
BEIS,Met Office,2020-07-30,06 ACCOMMODATION,CHIEF FINANCIAL OFFICER,GBC LTD,445026,380,859903672
BEIS,Met Office,2020-07-30,04 CONTRACTORS,CORPORATE,HAYS SPECIALIST RECRUITMENT LTD,444985,634.67,773695871
BEIS,Met Office,2020-07-30,04 CONTRACTORS,GOVERNMENT SERVICES,HAYS SPECIALIST RECRUITMENT LTD,444986,183.08,773695871
BEIS,Met Office,2020-07-30,04 CONTRACTORS,TECHNOLOGY,HAYS SPECIALIST RECRUITMENT LTD,444987,566.25,773695871
BEIS,Met Office,2020-07-30,04 CONTRACTORS,TECHNOLOGY,HAYS SPECIALIST RECRUITMENT LTD,444988,558.71,773695871
BEIS,Met Office,2020-07-30,04 CONTRACTORS,OPERATIONS,HAYS SPECIALIST RECRUITMENT LTD,444989,366.15,773695871
BEIS,Met Office,2020-07-30,04 CONTRACTORS,BUSINESS GROUP,HAYS SPECIALIST RECRUITMENT LTD,445037,811.65,773695871
BEIS,Met Office,2020-07-30,04 CONTRACTORS,OPERATIONS,HAYS SPECIALIST RECRUITMENT LTD,445038,731,773695871
BEIS,Met Office,2020-07-30,04 CONTRACTORS,OPERATIONS,HAYS SPECIALIST RECRUITMENT LTD,445039,926.5,773695871
BEIS,Met Office,2020-07-30,04 CONTRACTORS,OPERATIONS,HAYS SPECIALIST RECRUITMENT LTD,445040,1096.5,773695871
BEIS,Met Office,2020-07-30,13 MISCELLANEOUS,OTHER,HMRC,445104,4754315,-
BEIS,Met Office,2020-07-30,11 SERVICES,CHIEF FINANCIAL OFFICER,HMRC AR RECEIPTS,444152,32464,888848141
BEIS,Met Office,2020-07-30,11 SERVICES,TECHNOLOGY,IBM UNITED KINGDOM LTD,444848,6062.7,107328000
BEIS,Met Office,2020-07-30,08 SOFTWARE LICENCES,TECHNOLOGY,IBM UNITED KINGDOM LTD,444972,8958,107328000
BEIS,Met Office,2020-07-30,08 SOFTWARE LICENCES,TECHNOLOGY,IBM UNITED KINGDOM LTD,444973,49428.74,107328000
BEIS,Met Office,2020-07-30,08 SOFTWARE LICENCES,TECHNOLOGY,IBM UNITED KINGDOM LTD,444974,8958,107328000
BEIS,Met Office,2020-07-30,04 CONTRACTORS,OPERATIONS,JOBSEEKERS RECRUITMENT SERVICES LTD,444897,577.2,130 1297 14
BEIS,Met Office,2020-07-30,04 CONTRACTORS,GOVERNMENT SERVICES,JOBSEEKERS RECRUITMENT SERVICES LTD,444898,538.2,130 1297 14
BEIS,Met Office,2020-07-30,04 CONTRACTORS,GOVERNMENT SERVICES,JOBSEEKERS RECRUITMENT SERVICES LTD,444899,403.65,130 1297 14
BEIS,Met Office,2020-07-30,04 CONTRACTORS,GOVERNMENT SERVICES,JOBSEEKERS RECRUITMENT SERVICES LTD,444900,1026.01,130 1297 14
BEIS,Met Office,2020-07-30,04 CONTRACTORS,GOVERNMENT SERVICES,JOBSEEKERS RECRUITMENT SERVICES LTD,445050,672.75,130 1297 14
BEIS,Met Office,2020-07-30,04 CONTRACTORS,GOVERNMENT SERVICES,JOBSEEKERS RECRUITMENT SERVICES LTD,445051,403.65,130 1297 14
BEIS,Met Office,2020-07-30,04 CONTRACTORS,GOVERNMENT SERVICES,JOBSEEKERS RECRUITMENT SERVICES LTD,445052,1026.01,130 1297 14
BEIS,Met Office,2020-07-30,04 CONTRACTORS,OPERATIONS,JOBSEEKERS RECRUITMENT SERVICES LTD,445053,519.86,130 1297 14
BEIS,Met Office,2020-07-30,04 CONTRACTORS,GOVERNMENT SERVICES,JOBSEEKERS RECRUITMENT SERVICES LTD,445054,343.8,130 1297 14
BEIS,Met Office,2020-07-30,04 CONTRACTORS,GOVERNMENT SERVICES,JOBSEEKERS RECRUITMENT SERVICES LTD,445055,663.78,130 1297 14
BEIS,Met Office,2020-07-30,04 CONTRACTORS,GOVERNMENT SERVICES,JOBSEEKERS RECRUITMENT SERVICES LTD,445056,848.04,130 1297 14
BEIS,Met Office,2020-07-30,06 ACCOMMODATION,CHIEF FINANCIAL OFFICER,National Oceanography Centre,445030,26636.03,GB 338 5487 64
BEIS,Met Office,2020-07-30,13 MISCELLANEOUS,CHIEF FINANCIAL OFFICER,POSTURITE (UK) LTD,444968,64.45,583565114
BEIS,Met Office,2020-07-30,13 MISCELLANEOUS,CHIEF FINANCIAL OFFICER,POSTURITE (UK) LTD,444981,130.16,583565114
BEIS,Met Office,2020-07-30,13 MISCELLANEOUS,CHIEF FINANCIAL OFFICER,POSTURITE (UK) LTD,444982,170.47,583565114
BEIS,Met Office,2020-07-30,13 MISCELLANEOUS,CHIEF FINANCIAL OFFICER,POSTURITE (UK) LTD,444983,170.47,583565114
BEIS,Met Office,2020-07-30,13 MISCELLANEOUS,CHIEF FINANCIAL OFFICER,POSTURITE (UK) LTD,445023,609.46,583565114
BEIS,Met Office,2020-07-30,13 MISCELLANEOUS,CHIEF FINANCIAL OFFICER,POSTURITE (UK) LTD,445041,34.07,583565114
BEIS,Met Office,2020-07-30,11 SERVICES,OPERATIONS,Public Health England,444984,300,155579377
BEIS,Met Office,2020-07-30,06 ACCOMMODATION,CHIEF FINANCIAL OFFICER,REDACTED PERSONAL DATA,444843,751,426523462
BEIS,Met Office,2020-07-30,11 SERVICES,CORPORATE,REDACTED PERSONAL DATA,445042,2795,143043312
BEIS,Met Office,2020-07-30,11 SERVICES,CORPORATE,ROWE IT LTD,445043,16312.5,924964394
BEIS,Met Office,2020-07-30,06 ACCOMMODATION,CHIEF FINANCIAL OFFICER,Shetland Islands Council,444993,908.23,267858304
BEIS,Met Office,2020-07-30,11 SERVICES,STRATEGIC INVESTMENT,SOFTCAT LTD,445022,168,491848503
BEIS,Met Office,2020-07-30,08 SOFTWARE LICENCES,TECHNOLOGY,SOFTWARE BOX LIMITED,444859,132,734245248
BEIS,Met Office,2020-07-30,08 SOFTWARE LICENCES,TECHNOLOGY,SOFTWARE BOX LIMITED,444859,352,734245248
BEIS,Met Office,2020-07-30,06 ACCOMMODATION,CHIEF FINANCIAL OFFICER,SOUTH WEST WATER LTD,444615,8670.57,236873674
BEIS,Met Office,2020-07-30,06 ACCOMMODATION,CHIEF FINANCIAL OFFICER,SOUTH WEST WATER LTD,444781,2049.14,236873674
BEIS,Met Office,2020-07-30,06 ACCOMMODATION,CHIEF FINANCIAL OFFICER,THORNLEY WILDLIFE SERVICES,444860,160,N/A
BEIS,Met Office,2020-07-30,06 ACCOMMODATION,CHIEF FINANCIAL OFFICER,TULLY FARM HOLDINGS T/A CONTRACT SERVICES,442754,180,872632707
BEIS,Met Office,2020-07-30,06 ACCOMMODATION,CHIEF FINANCIAL OFFICER,TULLY FARM HOLDINGS T/A CONTRACT SERVICES,442754,180,872632707
BEIS,Met Office,2020-07-30,06 ACCOMMODATION,CHIEF FINANCIAL OFFICER,TULLY FARM HOLDINGS T/A CONTRACT SERVICES,442754,180,872632707
BEIS,Met Office,2020-07-30,06 ACCOMMODATION,CHIEF FINANCIAL OFFICER,TULLY FARM HOLDINGS T/A CONTRACT SERVICES,442754,180,872632707
BEIS,Met Office,2020-07-30,06 ACCOMMODATION,CHIEF FINANCIAL OFFICER,TULLY FARM HOLDINGS T/A CONTRACT SERVICES,442754,180,872632707
BEIS,Met Office,2020-07-30,06 ACCOMMODATION,CHIEF FINANCIAL OFFICER,TULLY FARM HOLDINGS T/A CONTRACT SERVICES,442754,180,872632707
BEIS,Met Office,2020-07-30,06 ACCOMMODATION,CHIEF FINANCIAL OFFICER,TULLY FARM HOLDINGS T/A CONTRACT SERVICES,442754,180,872632707
BEIS,Met Office,2020-07-30,06 ACCOMMODATION,CHIEF FINANCIAL OFFICER,TULLY FARM HOLDINGS T/A CONTRACT SERVICES,442754,180,872632707
BEIS,Met Office,2020-07-30,11 SERVICES,GOVERNMENT SERVICES,UK CENTRE FOR ECOLOGY & HYDROLOGY (UKCEH),445032,7148,336940192
BEIS,Met Office,2020-07-30,11 SERVICES,GOVERNMENT SERVICES,UK CENTRE FOR ECOLOGY & HYDROLOGY (UKCEH),445033,25519,336940192
BEIS,Met Office,2020-07-30,11 SERVICES,GOVERNMENT SERVICES,UK CENTRE FOR ECOLOGY & HYDROLOGY (UKCEH),445035,29077,336940192
BEIS,Met Office,2020-07-30,11 SERVICES,GOVERNMENT SERVICES,UNIVERSITY OF EXETER,444532,45878.56,142047795
BEIS,Met Office,2020-07-30,11 SERVICES,GOVERNMENT SERVICES,University Of Leeds,444286,45713.6,613451470
BEIS,Met Office,2020-07-30,13 MISCELLANEOUS,SCIENCE,University Of Leeds,444967,10418.01,613451470
BEIS,Met Office,2020-07-30,11 SERVICES,GOVERNMENT SERVICES,UNIVERSITY OF OXFORD,443779,19008.36,125506730
BEIS,Met Office,2020-07-30,11 SERVICES,GOVERNMENT SERVICES,University Of Reading,430338,73155.53,200012659
BEIS,Met Office,2020-07-30,11 SERVICES,GOVERNMENT SERVICES,University Of Reading,431990,-28770.21,200012659
BEIS,Met Office,2020-07-30,11 SERVICES,GOVERNMENT SERVICES,University Of Reading,431991,-73155.53,200012659
BEIS,Met Office,2020-07-30,11 SERVICES,GOVERNMENT SERVICES,University Of Reading,435029,-45984.51,200012659
BEIS,Met Office,2020-07-30,11 SERVICES,SCIENCE,University Of Reading,444612,25507,200012659
BEIS,Met Office,2020-07-30,11 SERVICES,GOVERNMENT SERVICES,University Of Reading,444852,57757.1,200012659
BEIS,Met Office,2020-07-30,07 EQUIPMENT,SCIENCE,UNIVERSITY OF YORK,444637,180,647200541
BEIS,Met Office,2020-07-30,07 EQUIPMENT,SCIENCE,UNIVERSITY OF YORK,444637,500,647200541
BEIS,Met Office,2020-07-30,07 EQUIPMENT,SCIENCE,UNIVERSITY OF YORK,444637,500,647200541
BEIS,Met Office,2020-07-30,11 SERVICES,CORPORATE,USERZOOM,445066,104700,GB977281769
BEIS,Met Office,2020-07-30,STOCK,OPERATIONS,VWR INTERNATIONAL LTD,444267,0,823853225
BEIS,Met Office,2020-07-30,STOCK,OPERATIONS,VWR INTERNATIONAL LTD,444267,427,823853225
